Workbook

Sheet Tabelle1
B1: Unser "Kleines Planetarium"
B2: Sonne, Mond, Merkur, Venus, Erde, Mars, Jupiter, Saturn, Uranus und Neptun: | N2: *) Systemzeit: | P2: =NOW() -> 2019-02-12T08:31:52.680 | R2: Passwort:
B3: Wer steht wann und wo am Himmel? | P3: =NOW() -> 43508.35547
B5: Datum: | D5: Zeit (UTC) | G5: Zeitzone | K5: Länge: | M5: Breite: | R5: TESTVERSION | S5: 2019-01-21
B6: 2019-01-21 | D6: 05:15:00 | E6: =B6+D6 -> 2019-01-21T05:15:00 | G6: 1 | H6: UTC +/-h | K6: 9.73 | M6: 52.38
B10: 2019-01-21T16:15:48.450 | D10: =B10-INT(B10) -> 16:15:48.450 | R10: Ingo Mennerich, 01/2019
B14: =B10 -> 2019-01-21T16:15:48.450
B15: Position am Himmel: Azmut und Höhe, Aufgang, Meridiandurchgang und Untergang | I15: =B10 -> 2019-01-21T16:15:48.450 | J15: =D10 -> 16:15:48.450 | K15: UTC | L15: Länge | M15: =K6 -> 9.73 | N15: ° | O15: Breite | P15: =M6 -> 52.38 | Q15: ° | R15: Sonne, Erde und Mond
R17: Mondphase | S17: =IF(F55>0,(1-(1+COS(RADIANS(F55)))/2)*100,(1-(1+COS(RADIANS(F55)))/2)*-100) -> -99.68068753 | T17: %
R30: Distanz ≈ | S30: =Tabelle4!D45 -> 0.3634384395 | T30: Mill. Km
E32: Sonne | F32: Mond* | G32: Merkur | H32: Venus | I32: Mars | J32: Jupiter | K32: Saturn | L32: Uranus | M32: Neptun
B33: Azimut | E33: =Tabelle6!C76 -> 243.0515699 | F33: =Tabelle6!C77 -> 57.88085025 | G33: =Tabelle6!C78 -> 245.4675379 | H33: =Tabelle6!C79 -> 281.8885669 | I33: =Tabelle6!C80 -> 182.5228907 | J33: =Tabelle6!C81 -> 279.6170649 | K33: =Tabelle6!C82 -> 255.760493 | L33: =Tabelle6!C83 -> 162.2721174 | M33: =Tabelle6!C84 -> 211.6801811 | O33: Aufgang: | P33: Höhe über dem Horizont aufsteigend 0°
B34: Höhe (°) | E34: =Tabelle6!D76 -> -4.638437808 | F34: =Tabelle6!D77 -> -0.4938240725 | G34: =Tabelle6!D78 -> -10.03688992 | H34: =Tabelle6!D79 -> -33.68457954 | I34: =Tabelle6!D80 -> 43.11431352 | J34: =Tabelle6!D81 -> -35.38125797 | K34: =Tabelle6!D82 -> -17.32843937 | L34: =Tabelle6!D83 -> 46.90876439 | M34: =Tabelle6!D84 -> 25.81946975 | O34: Untergang: | P34: Höhe über dem Horizont absteigend 0°
B36: Aufgang | E36: =Tabelle3!E121 -> 08:20:25.655 | F36: =Tabelle6!H126 -> 17:18:01.284 | G36: =Tabelle6!I122 -> 08:18:40.930 | H36: =Tabelle6!J122 -> 05:00:55.296 | I36: =Tabelle6!K122 -> 10:36:12.856 | J36: =Tabelle6!L122 -> 05:19:20.511 | K36: =Tabelle6!M122 -> 07:21:25.748 | L36: =Tabelle6!N122 -> 11:05:51.732 | M36: =Tabelle6!O122 -> 09:55:31.932 | O36: Zeiten: MEZ
B37: Azimut | E37: =Tabelle6!E127 -> 123.823544 | F37: =Tabelle6!G127 -> 58.63565719 | G37: =Tabelle6!I127 -> 129.4200583 | H37: =Tabelle6!J127 -> 123.2469601 | I37: =Tabelle6!K127 -> 80.93462238 | J37: =Tabelle6!L127 -> 127.9602136 | K37: =Tabelle6!M127 -> 128.4109122 | L37: =Tabelle6!N127 -> 72.73057818 | M37: =Tabelle6!O127 -> 101.5890535 | O37: Wenn Zeit(Aufgang) > Zeit(Meridian) → Aufgang am Vortag
B38: Meridiandurchgang | E38: =Tabelle3!E117 -> 12:32:21.613 | F38: =Tabelle6!H113 -> 01:24:16.366 | G38: =Tabelle6!I101 -> 12:10:21.964 | H38: =Tabelle6!J101 -> 09:14:53.890 | I38: =Tabelle6!K101 -> 17:08:23.228 | J38: =Tabelle6!L101 -> 09:16:22.912 | K38: =Tabelle6!M101 -> 11:16:49.279 | L38: =Tabelle6!N101 -> 18:04:38.008 | M38: =Tabelle6!O101 -> 15:21:59.965 | O38: Wenn Zeit(Untergang) < Zeit(Meridian) → Untergang am Folgetag
B39: Höhe bei MD (°) | E39: =Tabelle6!E34 -> 17.75632672 | F39: =Tabelle6!G34 -> 56.14456819 | G39: =Tabelle6!I34 -> 14.81361106 | H39: =Tabelle6!J34 -> 18.06795395 | I39: =Tabelle6!K34 -> 43.13917522 | J39: =Tabelle6!L34 -> 15.56607861 | K39: =Tabelle6!M34 -> 15.33256945 | L39: =Tabelle6!N34 -> 48.0604221 | M39: =Tabelle6!O34 -> 30.57619898
B40: Untergang | E40: =Tabelle3!E126 -> 16:44:17.571 | F40: =Tabelle6!H135 -> 09:30:31.449 | G40: =Tabelle6!I131 -> 16:02:02.997 | H40: =Tabelle6!J131 -> 13:28:52.484 | I40: =Tabelle6!K131 -> 23:40:33.601 | J40: =Tabelle6!L131 -> 13:13:25.312 | K40: =Tabelle6!M131 -> 15:12:12.811 | L40: =Tabelle6!N131 -> 01:03:24.284 | M40: =Tabelle6!O131 -> 20:48:27.998 | O40: Mond: Relativ schnelle Eigenbewegung von Westen nach Osten.
B41: Azimut | E41: =Tabelle6!E137 -> 236.176456 | F41: =Tabelle6!G137 -> 301.3643428 | G41: =Tabelle6!I137 -> 230.5799417 | H41: =Tabelle6!J137 -> 236.7530399 | I41: =Tabelle6!K137 -> 279.0653776 | J41: =Tabelle6!L137 -> 232.0397864 | K41: =Tabelle6!M137 -> 231.5890878 | L41: =Tabelle6!N137 -> 287.2694218 | M41: =Tabelle6!O137 -> 258.4109465 | O41: Auf- und Untergang nach Deklination bei Meridiandurchgang berechnet.
B46: ← OSTEN ← | I46: Ekliptikale Länge und Breite | S46: → WESTEN →
B52: =B10 -> 2019-01-21T16:15:48.450 | E52: Sonne | F52: Mond | G52: Merkur | H52: Venus | I52: Mars | J52: Jupiter | K52: Saturn | L52: Uranus | M52: Neptun
B53: Länge | E53: =Tabelle2!K72 -> 301.3329187 | F53: =Tabelle2!K81 -> 127.8116798 | G53: =Tabelle2!K73 -> 295.7189891 | H53: =Tabelle2!K74 -> 255.1118431 | I53: =Tabelle2!K76 -> 13.71296176 | J53: =Tabelle2!K77 -> 255.7249557 | K53: =Tabelle2!K78 -> 283.5636171 | L53: =Tabelle2!K79 -> 28.46376595 | M53: =Tabelle2!K80 -> 344.3675588
B54: Breite | E54: =Tabelle2!L72 -> 0 | F54: =Tabelle2!L81 -> 1.020202133 | G54: =Tabelle2!L73 -> -1.837146614 | H54: =Tabelle2!L74 -> 3.075677915 | I54: =Tabelle2!L76 -> 0.1172726765 | J54: =Tabelle2!L77 -> 0.6253462909 | K54: =Tabelle2!L78 -> 0.4644853369 | L54: =Tabelle2!L79 -> -0.5227621447 | M54: =Tabelle2!L80 -> -0.9649264148
B55: Elongation von der Sonne (°), östl.+, westl. - | E55: _ | F55: =Tabelle2!L94 -> -173.5212389 | G55: =Tabelle2!L86 -> -5.613929542 | H55: =Tabelle2!L87 -> -46.22107561 | I55: =Tabelle2!L89 -> 72.38004309 | J55: =Tabelle2!L90 -> -45.60796302 | K55: =Tabelle2!L91 -> -17.76930161 | L55: =Tabelle2!L92 -> 87.13084727 | M55: =Tabelle2!L93 -> 43.0346401
B58: =B10 -> 2019-01-21T16:15:48.450
B59: Heliozentrisch (von "oben" betrachtet mit Sonne als Mittelpunkt) | Q59: Geozentrisch (von uns aus gesehen)
B60: Merkur, Venus, Erde, Mars, Jupiter, Saturn, Uranus, Neptun | J60: Merkur, Venus, Erde, Mars, Jupiter, Saturn | Q60: Erde, Sonne, Merkur, Venus, Mars, Jupiter, Saturn
O66: Frühlings-
O67: punkt
O69: Sonne
O71: Merkur
O73: Venus
O75: Erde
J77: Sonne, Merkur, Venus, Erde, Mars | O77: Mars | Q77: Sonne, Merkur, Venus, Erde, Mars
O79: Jupiter
O81: Saturn
O83: Uranus
O85: Neptun
O87: Mond
B92: Planeten sind gleich groß dargestellt
B94: =B10 -> 2019-01-21T16:15:48.450
B95: Position am Sternenhimmel: Rektaszension und Deklination
E130: Sonne | F130: Mond | G130: Merkur | H130: Venus | I130: Mars | J130: Jupiter | K130: Saturn | L130: Uranus | M130: Neptun
B131: Rektaszension | E131: =Tabelle3!E79 -> 20:14:15.982 | F131: =Tabelle4!G188 -> 08:44:35.104 | G131: =Tabelle5!E106 -> 19:52:16.332 | H131: =Tabelle5!F106 -> 16:56:48.259 | I131: =Tabelle5!H106 -> 00:50:17.597 | J131: =Tabelle5!I106 -> 16:58:17.280 | K131: =Tabelle5!J106 -> 18:58:43.648 | L131: =Tabelle5!K106 -> 01:46:32.376 | M131: =Tabelle5!L106 -> 23:03:54.333 | P131: Kartengrundlage:
B132: Deklination | E132: =Tabelle3!E81 -> -19.86367328 | F132: =Tabelle4!G192 -> 18.52456819 | G132: =Tabelle5!E108 -> -22.80638894 | H132: =Tabelle5!F108 -> -19.55204605 | I132: =Tabelle5!H108 -> 5.519175216 | J132: =Tabelle5!I108 -> -22.05392139 | K132: =Tabelle5!J108 -> -22.28743055 | L132: =Tabelle5!K108 -> 10.4404221 | M132: =Tabelle5!L108 -> -7.043801025 | P132: https://in-the-sky.org/data/constellations_map.php
F133: topozentrisch
B137: Basis: Epoche J2000 (01.01.2000 12:00 UTC), Daten JPL/NASA | J137: Richtung des Frühlingspunkts:
B138: Berücksichtigt sind: | J138: Position der Erde relativ zur Sonne beim astronomischen Frühlingsbeginn
B139: ● Heliozentrische Länge (Position relativ zur Sonne)
B140: ● Extentrizität der Umlaufbahnen (Abweichung von der Kreisform) | J140: Es werden nur Zeitpunkte bis zum 01.01.1900 berechnet.
B141: ● Neigung (Inklination) gegen die Bahnebene der Erde (Ekliptik)
B142: ● Länge des Perihels (Periapsis, sonnennächster Punkt) | J142: Das "Kleine Planetarium" ist für den Einsatz in der Schule gedacht.
B143: ● Länge des aufsteigenden Knotens (Schnittpunkt Bahnebene / Ekliptik) | J143: Es ergänzt den "Planetenpfad" im Schulbiologiezentrum.
J144: Ziel ist es, einen einfachen Zugang zu den am Himmel beobachtbaren Phänomenen zu schaffen.
B145: Daraus berechnet: | J145: Die Positionen der Sonne, des Mondes und der Planeten werden in professionellen Astro-Programmen (z.B. Redshift)
B146: ● Ekliptikale Länge und Breite | J146: wesentlich genauer dargestellt.
B147: ● Rektaszension und Deklination | J147: Der Mond bewegt sich relativ schnell:
B148: ● Azmut (Kompassrichtung) und Höhe über dem Horizont | J148: Auf-, Durch- und Untergangszeiten des Mondes variieren daher je nach eingestellter Uhrzeit.
B149: ● Aufgang, Meridiandurchgang, Untergang | J149: Sie können sich den Auf- und Untergangszeiten auch durch Variieren der eingegebenen Zeit nähern:
J150: Bei Aufgang und Untergang ist die Höhe über dem Horizont 0°.

Sheet Tabelle2
B2: Sonne, Mond und Planeten
B4: DATUM | C4: =Tabelle1!B10 -> 2019-01-21T16:15:48.450
B6: Julianisches Datum: Anzahl der Tage seit dem 01. Januar -4723, 00:00 UT | M6: Datencheck:
M7: NASA https://omniweb.gsfc.nasa.gov/coho/helios/planet.html
M8: Redshift
M9: KOSMOS- Himmelsjahr 2018
B10: T: Anzahl der dem 01.01.2000 vergangenen Jahrhunderte seit | M10: calsky (www.calsky.com)
M12: E Exzentrische Anomalie
M13: http://www.jgiesen.de/kepler/kepler.html
M14: E=M+180/PI((e-1/8*e^3)*sinM+1/2*e^2*sin(2*M)+3/8*e^3*sin(3`M))
B15: Julianisches Datum | D15: =2451544.5+C4-DATE(2000,1,1) -> 2458505.178
B16: Tage | D16: =(D15-2451545) -> 6960.177644 | M16: v Wahre Anomalie
B17: T (Jahrhunderte) | D17: =(D15-2451545)/36525 -> 0.1905592784 | M17: http://www.stargazing.net/kepler/ellipse.html#twig03c
M18: v = M + 180/pi * [ (2 * e - e^3/4) * sin(M) + 5/4 * e^2 * sin(2*M)+ 13/12 * e^3 * sin(3*M) ]
B19: Ephemeriden Epoche J2000 | D19: 2451545.0 JD
B20: http://www.met.rdg.ac.uk/~ross/Astronomy/Planets.html#elems | M20: Bahnradius
B21: University of Reading | M21: https://www.arndt-bruenner.de/mathe/scripts/kepler.htm
M22: a·(1 – e²)/(1 + e·cos(v))
C25: Distanz zur Sonne | E25: Heliozentrische Länge | H25: Exzentrizität der Bahn | J25: Heliozentrische Länge der Periapsis | M25: Bahnneigung zur Ekliptik (Inklination) | P25: Heliozentrische Länge des aufsteigenden Knotens
B26: Planet | C26: a | D26: D | E26: l | F26: Dl | G26: Dl | H26: e | I26: De | J26: Länge (v, °) | K26: Dv | L26: Dv | M26: i | N26: Di | O26: Di | P26: Länge (W, °) | Q26: DW | R26: DW
C27: AE | D27: AE/Jh | E27: (°) | F27: "/Jh | G27: °/Jh | I27: /Jh | J27: Periapsis | K27: "/Jh | L27: °/Jh | M27: (°) | N27: "/Jh | O27: "/Jh | P27: Aufsteigender Knoten W | Q27: "/Jh | R27: °/Jh
B28: Merkur | C28: 0.38709893 | D28: 6.6e-07 | E28: 252.25084 | F28: 538101628.3 | G28: =F28/3600 -> 149472.6745 | H28: 0.20563069 | I28: 2.527e-05 | J28: 77.45645 | K28: 573.57 | L28: =K28/3600 -> 0.159325 | M28: 7.00487 | N28: -23.51 | O28: =N28/3600 -> -0.006530555556 | P28: 48.33167 | Q28: -446.3 | R28: =Q28/3600 -> -0.1239722222
B29: Venus | C29: 0.72333199 | D29: 9.2e-07 | E29: 181.97973 | F29: 210664136.1 | G29: =F29/3600 -> 58517.81557 | H29: 0.00677323 | I29: -4.938e-05 | J29: 131.53298 | K29: -108.8 | L29: =K29/3600 -> -0.03022222222 | M29: 3.39471 | N29: -2.86 | O29: =N29/3600 -> -0.0007944444444 | P29: 76.68069 | Q29: -996.89 | R29: =Q29/3600 -> -0.2769138889
B30: Erde | C30: 1.00000011 | D30: -5e-08 | E30: 100.46435 | F30: 129597740.6 | G30: 35999.3724 | H30: 0.01671022 | I30: -3.804e-05 | J30: 102.94719 | K30: 1198.28 | L30: 0.3328555556 | M30: 5e-05 | N30: -46.94 | O30: -0.01303888889 | P30: -11.26064 | Q30: -18228.25 | R30: -5.063402778
B31: Mars | C31: 1.52366231 | D31: -7.221e-05 | E31: 355.45332 | F31: 68905103.78 | G31: 19140.30661 | H31: 0.09341233 | I31: 0.00011902 | J31: 336.04084 | K31: 1560.78 | L31: 0.43355 | M31: 1.85061 | N31: -25.47 | O31: -0.007075 | P31: 49.57854 | Q31: -1020.19 | R31: -0.2833861111
B32: Jupiter | C32: 5.20336301 | D32: 0.00060737 | E32: 34.40438 | F32: 10925078.35 | G32: 3034.743986 | H32: 0.04839266 | I32: -0.0001288 | J32: 14.75385 | K32: 839.93 | L32: 0.2333138889 | M32: 1.3053 | N32: -4.15 | O32: -0.001152777778 | P32: 100.55615 | Q32: 1217.17 | R32: 0.3381027778
B33: Saturn | C33: 9.53707032 | D33: -0.0030153 | E33: 49.94432 | F33: 4401052.95 | G33: 1222.514708 | H33: 0.0541506 | I33: -0.00036762 | J33: 92.43194 | K33: -1948.89 | L33: -0.5413583333 | M33: 2.48446 | N33: 6.11 | O33: 0.001697222222 | P33: 113.71504 | Q33: -1591.05 | R33: -0.4419583333
B34: Uranus | C34: 19.19126393 | D34: 0.00152025 | E34: 313.23218 | F34: 1542547.79 | G34: 428.4854972 | H34: 0.04716771 | I34: -0.0001915 | J34: 170.96424 | K34: 1312.56 | L34: 0.3646 | M34: 0.76986 | N34: -2.09 | O34: -0.0005805555556 | P34: 74.22988 | Q34: -1681.4 | R34: -0.4670555556
B35: Neptun | C35: 30.06896348 | D35: -0.00125196 | E35: 304.88003 | F35: 786449.21 | G35: 218.4581139 | H35: 0.00858587 | I35: 2.51e-05 | J35: 44.97135 | K35: -844.43 | L35: -0.2345638889 | M35: 1.76917 | N35: -3.64 | O35: -0.001011111111 | P35: 131.72169 | Q35: -151.25 | R35: -0.04201388889
B36: Pluto | C36: 39.48168677 | D36: -0.00076912 | E36: 238.92881 | F36: 522747.9 | G36: 145.20775 | H36: 0.24880766 | I36: 6.465e-05 | J36: 224.06676 | K36: -132.25 | L36: -0.03673611111 | M36: 17.14175 | N36: 11.07 | O36: 0.003075 | P36: 110.30347 | Q36: -37.33 | R36: -0.01036944444
C39: AE | E39: Heliozentrische Länge l(°) | H39: Exzentrizität | J39: Perihel | L39: Inklination | N39: Knoten, (°) | P39: Heliozentrische Breite | R39: Heliozentrische Länge l(°) | U39: E28+G28*$D$17
E40: Rohwerte | F40: l (°) | H40: e | J40: l° | L40: i (°) | N40: W | P40: b | U40: E41-GANZZAHL(E41/360)*360
B41: Merkur | C41: =C28+D28*$D$17 -> 0.3870990558 | E41: =E28+G28*$D$17 -> 28735.65584 | F41: =E41-INT(E41/360)*360 -> 295.6558402 | H41: =H28+I28*$D$17 -> 0.2056355054 | J41: =J28+L28*$D$17 -> 77.48681086 | L41: =M28+O28*$D$17 -> 7.003625542 | N41: =P28+R28*$D$17 -> 48.30804594 | P41: =ASIN(SIN(RADIANS(L41))*SIN(RADIANS(F41-N41)))*180/PI() -> -6.460964208 | R41: Exzentrizität | U41: H28+I28*$D$17
B42: Venus | C42: =C29+D29*$D$17 -> 0.7233321653 | E42: =E29+G29*$D$17 -> 11333.09244 | F42: =E42-INT(E42/360)*360 -> 173.0924398 | H42: =H29+I29*$D$17 -> 0.006763820183 | J42: =J29+L29*$D$17 -> 131.5272209 | L42: =M29+O29*$D$17 -> 3.394558611 | N42: =P29+R29*$D$17 -> 76.62792149 | P42: =ASIN(SIN(RADIANS(L42))*SIN(RADIANS(F42-N42)))*180/PI() -> 3.372950175
B43: Erde | C43: 1.0000001 | E43: 6960.478777 | F43: 120.4787774 | H43: 0.01670297113 | J43: =J30+L30*$D$17 -> 103.0106187 | L43: -0.002434681258 | N43: -12.22551838 | P43: -0.001789158994 | R43: Perihel | U43: J28+L28*$C$14
B44: Mars | C44: 1.52364855 | E44: 4002.816335 | F44: 42.81633539 | H44: 0.09343501037 | J44: 336.123457 | L44: 1.849261793 | N44: 49.52453815 | P44: -0.2159806844
B45: Jupiter | C45: 5.20347875 | E45: 612.7030042 | F45: 252.7030042 | H45: 0.04836811596 | J45: 14.79831013 | L45: 1.305080327 | N45: 100.6205786 | P45: 0.6109984903 | R45: Inklination | U45: M28+O28*$C$14
B46: Saturn | C46: 9.536495727 | E46: 282.9058407 | F46: 282.9058407 | H46: 0.0540805466 | J46: 92.32877915 | L46: 2.484783421 | N46: 113.6308207 | P46: 0.4622658583
B47: Uranus | C47: 19.19155363 | E47: 394.8840672 | F47: 34.88406716 | H47: 0.0471312179 | J47: 171.0337179 | L47: 0.7697493698 | N47: 74.14087823 | P47: -0.4870865993 | R47: Knoten, (°) | U47: P28+R28*$D$17
B48: Neptun | C48: 30.06872491 | E48: 346.5092505 | F48: 346.5092505 | H48: 0.008590653038 | J48: 44.92665167 | L48: 1.768977323 | N48: 131.7136839 | P48: -1.009358799
R49: Heliozentrische Breite | U49: ARCSIN(SIN(BOGENMASS(L41))*SIN(BOGENMASS(F41-N41)))*180/PI()
U50: sin(b) = sin(i)*sin(l - v)
C53: Mittlere Anomalie | F53: Exzentrische Anomalie | H53: Wahre Anomalie | J53: Bahnradius | L53: Bahnradius | N53: Entfernung | P53: Entfernung | R53: Mittlere Anomalie | U53: C56+180/PI()*(((H41-1/8*H41^3)*SIN(BOGENMASS(C56))+(1/2)*(H41^2)*SIN(BOGENMASS(2*C56)))+3/8*H41^3*SIN(BOGENMASS(3*C56)))
C54: M | F54: E | H54: v | J54: r (AE) | L54: Mill. km | N54: Erde-Planet AE | P54: Erde-Planet (Mill. Km)
R55: Wahre Anomalie | U55: C56+180/PI()*((2*H41-0,25*H41^3)*SIN(BOGENMASS(C56))+5/4*H41^2*SIN(BOGENMASS(2*C56))+13/12*H41^3*SIN(BOGENMASS(3*C56)))
B56: Merkur | C56: =IF(F41<J41,360+F41-J41,F41-J41) -> 218.1690293 | F56: =C56+180/PI()*(((H41-1/8*H41^3)*SIN(RADIANS(C56))+(1/2)*(H41^2)*SIN(RADIANS(2*C56)))+3/8*H41^3*SIN(RADIANS(3*C56))) -> 211.9335341 | H56: =C56+180/PI()*((2*H41-0.25*H41^3)*SIN(RADIANS(C56))+5/4*H41^2*SIN(RADIANS(2*C56))+13/12*H41^3*SIN(RADIANS(3*C56))) -> 206.1354928 | J56: =Tabelle5!E60 -> 0.4546570093 | L56: =J56*149.7 -> 68.06215429 | N56: =Tabelle5!E102 -> 1.422109845 | P56: =N56*149.7 -> 212.8898438
B57: Venus | C57: 41.56521897 | F57: =C57+180/PI()*(((H42-1/8*H42^3)*SIN(RADIANS(C57))+(1/2)*(H42^2)*SIN(RADIANS(2*C57)))+3/8*H42^3*SIN(RADIANS(3*C57))) -> 41.82364508 | H57: =C57+180/PI()*((2*H42-0.25*H42^3)*SIN(RADIANS(C57))+5/4*H42^2*SIN(RADIANS(2*C57))+13/12*H42^3*SIN(RADIANS(3*C57))) -> 42.08272665 | J57: =Tabelle5!F60 -> 0.7196862785 | L57: =J57*149.7 -> 107.7370359 | N57: =Tabelle5!F102 -> 0.7883291659 | P57: =N57*149.7 -> 118.0128761 | R57: Bahnradius (AE) | U57: Tabelle5!E57
B58: Erde | C58: 17.46815868 | F58: 17.76007611 | H58: 18.05435255 | J58: =Tabelle5!G60 -> 0.9840931551 | L58: 147.3187453 | N58: 0 | P58: =N58*149.7 -> 0
B59: Mars | C59: 66.69287842 | F59: 71.77983137 | H59: 76.95231518 | J59: =Tabelle5!H60 -> 1.479129529 | L59: 221.4256904 | N59: =Tabelle5!H102 -> 1.441616122 | P59: =N59*149.7 -> 215.8099334 | R59: Bahnradius (Mill. Km) | U59: J56*149,7
B60: Jupiter | C60: 237.904694 | F60: 235.6177097 | H60: 233.3606564 | J60: =Tabelle5!I60 -> 5.345607305 | L60: 800.2374135 | N60: =Tabelle5!I102 -> 5.987544476 | P60: 896.3354081
B61: Saturn | C61: 190.5770615 | F61: 190.036949 | H61: 189.5103661 | J61: =Tabelle5!J60 -> 10.04434152 | L61: 1503.637925 | N61: =Tabelle5!J102 -> 10.97696444 | P61: 1643.251577 | R61: Entfernung (AE) | U61: Tabelle5!E98
B62: Uranus | C62: 223.8503492 | F62: 222.0419819 | H62: 220.263911 | J62: =Tabelle5!K60 -> 19.8633007 | L62: 2973.536115 | N62: =Tabelle5!K102 -> 19.88822624 | P62: 2977.267468
B63: Neptun | C63: 301.5825989 | F63: 301.1614098 | H63: 300.7392765 | J63: =Tabelle5!L60 -> 29.9350622 | L63: 4481.278812 | N63: =Tabelle5!L102 -> 30.64673959 | P63: 4587.816917 | R63: Entfernung (Mill. Km) | U63: N56*149,7
B67: DIAGRAMME
R68: DIAGRAMME
C69: Heliozentrisch | F69: Geozentrisch | K69: Ekliptikale | L69: Ekliptikale | O69: Geozentrische Position
K70: Länge (°) | L70: Breite (°) | O70: RA | P70: Deklination | R70: Heliozentrisch
C71: x | D71: Y | F71: x | G71: y | R71: x | U71: J56*SIN(BOGENMASS(F41))*-1 | X71: Sonne: 0
B72: ="Sonne" -> Sonne | C72: 0 | D72: 0 | F72: =C72-$C$75 -> 0.8481083049 | G72: =D72-$D$75 -> 0.4991509202 | I72: ="Sonne" -> Sonne | J72: Tabelle3 | K72: =Tabelle3!E53 -> 301.3329187 | L72: 0 | N72: ="Sonne" -> Sonne | O72: =Tabelle3!E78 -> 20.23777267 | P72: =Tabelle3!E81 -> -19.86367328 | R72: Y | U72: J56*SIN(BOGENMASS(90-F41)) | X72: Sonne: 0
B73: Merkur | C73: =J56*SIN(RADIANS(F41))*-1 -> 0.4098328246 | D73: =J56*SIN(RADIANS(90-F41)) -> 0.1968503289 | F73: =C73-$C$75 -> 1.257941129 | G73: =D73-$D$75 -> 0.6960012491 | I73: Merkur | J73: Tabelle5 | K73: =Tabelle5!E85 -> 295.7189891 | L73: =Tabelle5!E88 -> -1.837146614 | N73: Merkur | O73: =Tabelle5!E105 -> 19.87120338 | P73: =Tabelle5!E108 -> -22.80638894
B74: Venus | C74: =(J57*SIN(RADIANS(F42))*-1) -> -0.08655510821 | D74: -0.7144624222 | F74: 0.7615531967 | G74: -0.2153115019 | I74: Venus | J74: Tabelle5 | K74: =Tabelle5!F85 -> 255.1118431 | L74: =Tabelle5!F88 -> 3.075677915 | N74: Venus | O74: =Tabelle5!F105 -> 16.94673852 | P74: =Tabelle5!F108 -> -19.55204605 | R74: Geozentrisch
B75: Erde | C75: -0.8481083049 | D75: -0.4991509202 | F75: 0 | G75: 0 | I75: Erde | J75: Tabelle5 | K75: 0 | L75: 0 | N75: Erde | O75: 0 | P75: 0 | R75: x | U75: C72-$C$75
B76: Mars | C76: -1.005291076 | D76: 1.084994938 | F76: -0.1571827711 | G76: 1.584145858 | I76: Mars | J76: Tabelle5 | K76: =Tabelle5!H85 -> 13.71296176 | L76: =Tabelle5!H88 -> 0.1172726765 | N76: Mars | O76: =Tabelle5!H105 -> 0.8382212941 | P76: =Tabelle5!H108 -> 5.519175216 | R76: y | U76: D72-$D$75
B77: Jupiter | C77: 5.103859647 | D77: -1.589381693 | F77: 5.951967951 | G77: -1.090230772 | I77: Jupiter | J77: Tabelle5 | K77: =Tabelle5!I85 -> 255.7249557 | L77: =Tabelle5!I88 -> 0.6253462909 | N77: Jupiter | O77: =Tabelle5!I105 -> 16.97146675 | P77: =Tabelle5!I108 -> -22.05392139
B78: Saturn | C78: 9.790605694 | D78: 2.243398465 | F78: 10.638714 | G78: 2.742549385 | I78: Saturn | J78: Tabelle5 | K78: =Tabelle5!J85 -> 283.5636171 | L78: =Tabelle5!J88 -> 0.4644853369 | N78: Saturn | O78: =Tabelle5!J105 -> 18.9787911 | P78: =Tabelle5!J108 -> -22.28743055 | R78: Ekliptikale Länge | U78: Tabelle5!E81
B79: Uranus | C79: -11.3601749 | D79: 16.29408301 | F79: -10.5120666 | G79: 16.79323393 | I79: Uranus | J79: Tabelle5 | K79: =Tabelle5!K85 -> 28.46376595 | L79: =Tabelle5!K88 -> -0.5227621447 | N79: Uranus | O79: =Tabelle5!K105 -> 1.775660121 | P79: =Tabelle5!K108 -> 10.4404221 | R79: Ekliptikale Breite | U79: Tabelle5!E84
B80: Neptun | C80: 6.983501845 | D80: 29.10908194 | F80: 7.83161015 | G80: 29.60823286 | I80: Neptun | J80: Tabelle5 | K80: =Tabelle5!L85 -> 344.3675588 | L80: =Tabelle5!L88 -> -0.9649264148 | N80: Neptun | O80: =Tabelle5!L105 -> 23.06509258 | P80: =Tabelle5!L108 -> -7.043801025
I81: Mond | J81: Tabelle4 | K81: =Tabelle4!G72 -> 127.8116798 | L81: =Tabelle4!G85 -> 1.020202133 | N81: Mond | O81: =Tabelle4!D109 -> 8.700099633 | P81: =Tabelle4!E113 -> 19.29932597 | R81: Geozentrische Position
R82: RA | U82: Tabelle3!E78
B83: Berechnung der X/Y-Koordinaten | R83: Deklination | U83: Tabelle3!E81
L84: Elongation
B85: Sinussatz: | L85: von der Sonne | R85: Elongation von der Sonne | U85: K73-$K$72
I86: Merkur | J86: =K73-$K$72 -> -5.613929542 | K86: =IF(J86<0,J86+360,J86) -> 354.3860705 | L86: =IF(K86>180,K86-360,K86) -> -5.613929542 | U86: WENN(J86<0;J86+360;J86)
I87: Venus | J87: -46.22107561 | K87: =IF(J87<0,J87+360,J87) -> 313.7789244 | L87: =IF(K87>180,K87-360,K87) -> -46.22107561 | U87: WENN(K86>180;K86-360;K86)
I88: Erde | J88: -301.3329187 | K88: =IF(J88<0,J88+360,J88) -> 58.66708132 | L88: 58.66708132
I89: Mars | J89: -287.6199569 | K89: 72.38004309 | L89: 72.38004309
I90: Jupiter | J90: -45.60796302 | K90: 314.392037 | L90: -45.60796302
I91: Saturn | J91: -17.76930161 | K91: 342.2306984 | L91: -17.76930161
I92: Uranus | J92: -272.8691527 | K92: 87.13084727 | L92: 87.13084727
I93: Neptun | J93: 43.0346401 | K93: 43.0346401 | L93: 43.0346401
I94: Mond | J94: -173.5212389 | K94: 186.4787611 | L94: -173.5212389

Sheet Tabelle3
A1: Sonne
A3: DATUM | B3: =Tabelle1!B10 -> 2019-01-21T16:15:48.450 | C3: UTC | E3: Sternzeit | G3: =Tabelle1!B6+Tabelle1!D6 -> 2019-01-21T05:15:00
E4: Länge (Sonne) | G4: =E31 -> 300.7465354
A5: Julianisches Datum: Anzahl seit 01.01. -4723, 00:00 UT | E5: GMST0= | F5: =G4/15+12 -> 32.04976903 | G5: =F5/24 -> 1.335407043
E6: Länge l° | G6: =Tabelle1!K6 -> 9.73
E7: Uhrzeit (UT) | G7: 00:00:00
E8: SIDTIME | F8: =F5+G7*24+G6/15 -> 32.69843569 | G8: =F8/24 -> 1.362434821
A9: T: Anzahl der seit 01.01.2000 vergangenen Jahrhunderte
A14: Julianisches Datum (JD) | C14: =2451544.5+B3-DATE(2000,1,1)+1 -> 2458506.178 | E14: "+1" , Korrektur | G14: 2451544,5+B3-DATUM(2000;1;1)+1 | I14: 2451544,5 + DATUM - DATUM(2000;1;1)
A16: Differenz zu J2000 | C16: =B3-DATE(2000,1,1)+1 -> 6961.677644 | D16: Tage | E16: "+1" , Korrektur | G16: B3-DATUM(2000;1;1)+1 | I16: DATUM - DATUM(2000;1;1) +1
A18: T (Jahrhunderte) | C18: =(C14-2451545)/36525 -> 0.1905866569 | G18: (C14-2451545)/36525 | I18: JD-2451545)/36525
B20: v | E20: =282.9404+0.0000470935*C16 -> 283.2682498 | G20: 282,9404+0,0000470935*C16 | I20: Länge des Perihelions (Periapsis)
B22: a= | E22: 1 | G22: 1 | I22: Mittlere Distanz Erde - Somnne (1 AU)
B24: e= | E24: =0.016709-0.000000001151*C16 -> 0.01670098711 | G24: 0,016709-0,000000001151*C16 | I24: Exzentrizität
B26: M= | E26: =356.047+0.9856002585*C16 -> 7217.478286 | G26: 356,047+0,9856002585*C16 | I26: Mittlere Anomalie
E27: =E26-INT(E26/360)*360 -> 17.47828562 | G27: E26-GANZZAHL(E26/360)*360 | I27: Auf Bereich 0°-360° reduziert: M-GANZZAHL(L/360)*360
B30: Heliozentrische Länge | E30: =E20+E27 -> 300.7465354 | G30: E20+E27 | I30: L=v+M
E31: =E30-INT(E30/360)*360 -> 300.7465354 | G31: E30-GANZZAHL(E30/360)*360 | I31: Auf Bereich 0°-360° reduziert: L-GANZZAHL(L/360)*360
B33: E= | E33: =E27+(180/PI()*E24*SIN(RADIANS(E27))*(1+E24*COS(RADIANS(E27)))) -> 17.77026216 | G33: E27+(180/PI()*E24*SIN(BOGENMASS(E27))*(1+E24*COS(BOGENMASS(E27)))) | I33: Exzentrische Anomalie
B38: X | E38: =COS(RADIANS(E33))-E24 -> 0.9355869404 | G38: COS(BOGENMASS(E33))-E24 | I38: X=cos(E) - e
B40: Y | E40: =SIN(RADIANS(E33))*SQRT(1-E24^2) -> 0.3051585198 | G40: SIN(BOGENMASS(E33))*WURZEL(1-E24^2) | I40: Y=sin(E) * WURZEL(1 - e^2)
B44: Entfernung r | E44: =SQRT(E38^2+E40^2) -> 0.9840958516 | G44: WURZEL(E38^2+E40^2) | I44: WURZEL(x^2+ y^2)
A48: Wahre Anomalie
B49: v=arctan2( y, x ) | E49: =ATAN2(E40,E38)*180/PI() -> 71.93533109 | G49: ARCTAN2(E40;E38)*180/PI() | I49: Quadrant beachten!
E50: =IF(ATAN2(E38,E40)*180/PI()<0,360+ATAN2(E38,E40)*180/PI(),ATAN2(E38,E40)*180/PI()) -> 18.06466891 | G50: WENN(ARCTAN2(E38;E40)*180/PI()<0;360+ARCTAN2(E38;E40)*180/PI();ARCTAN2(E38;E40)*180/PI()) | I50: WENN v<0; 360 - v
A51: Ekliptikale Länge
B52: Länge l | E52: =E20+E50 -> 301.3329187 | G52: E20+E50 | I52: v+v
E53: =E52-INT(E52/360)*360 -> 301.3329187 | G53: E52-GANZZAHL(E52/360)*360 | I53: l-GANZZAHL(l/360)*360
B56: x(Ekliptik)= | E56: =E44*COS(RADIANS(E53)) -> 0.511739631 | G56: E44*COS(BOGENMASS(E53)) | I56: r*COS(l)
B58: y(Ekliptik)= | E58: =E44*SIN(RADIANS(E53)) -> -0.8405755143 | G58: E44*SIN(BOGENMASS(E53)) | I58: r*SIN(l)
B60: z(Ekliptik)= | E60: 0 | G60: 0: Sonne "läuft" scheinbar nahezu entlang die Ekliptik | I60: 0
A62: Umwandlung Ekliptikales System - Äquatoriales System
B64: Schiefe der Ekliptik e | E64: 23.4406 | G64: 23.4406
B66: x(Äquator)= | E66: =E56 -> 0.511739631 | G66: E56 | I66: x(Äquator) = x(Ekliptik)
B68: y(Äquator)= | E68: =E58*COS(RADIANS(E64))-E60*SIN(RADIANS(E64)) -> -0.7712053177 | G68: E58*COS(BOGENMASS(E64))-E60*SIN(BOGENMASS(E64)) | I68: y(Ekliptik)*COS(e) - z(Ekliptik)*SIN(e)
B70: z(Äquator)= | E70: =E58*SIN(RADIANS(E64))+E60*COS(RADIANS(E64)) -> -0.3343793553 | G70: E58*SIN(BOGENMASS(E64))+E60*COS(BOGENMASS(E64)) | I70: y(Ekliptik)*SIN€ + z(Ekliptik)*COS(e)
A72: Geozentrische Position
B74: r = (Distanz Erde - Sonne) | E74: =SQRT(E66^2+E68^2+E70^2) -> 0.9840958516 | G74: WURZEL(E66^2+E68^2+E70^2) | I74: WURZEL(x^2 + y^2 + z^2)
E76: =ATAN2(E66,E68)*180/PI() -> -56.43340988 | G76: ARCTAN2(E66;E68)*180/PI() | I76: ARCTAN2(x;y)*180/PI()
B77: Stundenwinkel | E77: =IF(E76<0,360+E76,E76) -> 303.5665901 | G77: WENN(E76<0;360+E76;E76) | I77: WENN STUNDENWINKEL<0,360+RA
B78: RA | E78: =E77/15 -> 20.23777267 | G78: E77/15 | I78: STUNDENWINKEL/15
E79: =E78/24 -> 20:14:15.982 | G79: E78/24 | I79: Zeitformat
B81: d Deklination | E81: =ASIN(E70/E74)*180/PI() -> -19.86367328 | G81: ARCSIN(E70/E74)*180/PI() | I81: ARCSIN(z/r)*180/PI()
C83: Alternativ | E83: =ATAN2(E70,SQRT(E66^2+E68^2))*180/PI() -> 109.8636733 | G83: ARCTAN2(E70;WURZEL(E66^2+E68^2))*180/PI() | I83: ARCTAN2(z;WURZEL(x^2+y^2))*180/PI()
E84: =IF(E83>E64,90-E83,E83) -> -19.86367328 | G84: WENN(E83>E64;90-E83;E83) | I84: WENN d > e; 90 - d
A86: Geographische Länge | E86: =Tabelle1!K6 -> 9.73 | G86: Tabelle1!G6
A88: Geographische Breite | E88: =Tabelle1!M6 -> 52.38 | G88: Tabelle1!I6
A91: Zeitgleichung
B93: https://de.wikipedia.org/wiki/Zeitgleichung
B95: ZG* | E95: =ATAN((TAN(RADIANS(E31))-TAN(RADIANS(E53))*COS(RADIANS(E64)))/(1+TAN(RADIANS(E31))*TAN(RADIANS(E53))*COS(RADIANS(E64))))*180/PI() -> -2.82005474 | F95: ° | G95: ARCTAN((TAN(BOGENMASS(E31))-TAN(BOGENMASS(E53))*COS(BOGENMASS(E64)))/(1+TAN(BOGENMASS(E31))*TAN(BOGENMASS(E53))*COS(BOGENMASS(E64))))*180/PI()
G96: ARCTAN((TAN(BOGENMASS(HEL.LÄNGE))-TAN(BOGENMASS(EKL.LÄNGE))*COS(BOGENMASS(SCHIEFE EKL)))/(1+TAN(BOGENMASS(HEL.LÄNGE))*TAN(BOGENMASS(EKL.LÄNGE))*COS(BOGENMASS(SCHIEFE EKL))))*180/PI()
B97: ZG | E97: =E95*4 -> -11.28021896 | F97: min | G97: E95*4
A101: Tageslänge, Durchgang, Aufgang und Untergang | G101: =ACOS(((SIN(RADIANS(E88))*SIN(RADIANS(E81))/(COS(RADIANS(E88))*COS(RADIANS(E81))))))*180/PI() -> 117.955811 | M101: =TAN(RADIANS(E88))*TAN(RADIANS(E81)) -> -0.4687904556
M102: =ACOS(TAN(RADIANS(E88))*TAN(RADIANS(E81)))*180/PI() -> 117.955811 | N102: =ACOS(M101)*180/PI()/12 -> 9.829650917
A103: astronomisch | E103: =ACOS((SIN(RADIANS(-0.833))-(SIN(RADIANS(E88))*SIN(RADIANS(E81))/(COS(RADIANS(E88))*COS(RADIANS(E81))))))*180/PI() -> 62.98315896 | G103: ARCCOS((SIN(BOGENMASS(-0,833))-(SIN(BOGENMASS(E88))*SIN(BOGENMASS(E81))/(COS(BOGENMASS(E88))*COS(BOGENMASS(E81))))))*180/PI()
E104: =E103/15 -> 4.198877264 | G104: E103/15
B105: Halber Tagbogen | D105: =12*ACOS((SIN(RADIANS(-0.833))-(SIN(RADIANS(E88))*SIN(RADIANS(E81))/(COS(RADIANS(E88))*COS(RADIANS(E81))))))/PI() -> 4.198877264 | G105: 12*ARCCOS((SIN(BOGENMASS(-0,833))-(SIN(BOGENMASS(E88))*SIN(BOGENMASS(E81))/(COS(BOGENMASS(E88))*COS(BOGENMASS(E81))))))/PI()
G106: 12*ARCCOS((SIN(BOGENMASS(-0,833))-(SIN(BOGENMASS(BREITE))*SIN(BOGENMASS(DEKL))/(COS(BOGENMASS(BREITE))*COS(BOGENMASS(DEKL))))))/PI()
B107: Tageslänge | D107: =2*D105 -> 8.397754528 | G107: 2*D105
E108: =D107/24 -> 08:23:51.916 | G108: D107/24
B111: Mittag | C111: MOZ | D111: 12 | G111: 12
B112: Zeitgleichung (min) | D112: =E97 -> -11.28021896 | G112: E97
D113: =D112/60 -> -0.1880036493 | G113: D112/60
B115: Differenz MEZ/MEZ - MOZ | D115: =(15-E86)*4/60 -> 0.3513333333 | G115: (15-E86)*4/60
B116: Mittag MEZ | D116: =12+D115-D113 -> 12.53933698 | G116: 12+D115-D113
E117: =D116/24 -> 12:32:21.613 | G117: D116/24
B120: SA | C120: MEZ | D120: =D116-D105 -> 8.340459719 | G120: D116-D105
E121: =D120/24 -> 08:20:25.655 | G121: D120/24
D123: Azimut | E123: =DEGREES(ACOS((SIN(RADIANS(E81))/COS(RADIANS(E88))))) -> 123.823544 | G123: GRAD(ARCCOS((SIN(BOGENMASS(E81))/COS(BOGENMASS(E88)))))
G124: GRAD(ARCCOS((SIN(BOGENMASS(DEKL))/COS(BOGENMASS(BREITE)))))
B125: SU | C125: MEZ | D125: =D116+D105 -> 16.73821425 | G125: D116+D105
E126: =D125/24 -> 16:44:17.571 | G126: D125/24
D128: Azimut | E128: =360-DEGREES(ACOS((SIN(RADIANS(E81))/COS(RADIANS(E88))))) -> 236.176456 | G128: 360-GRAD(ARCCOS((SIN(BOGENMASS(E81))/COS(BOGENMASS(E88)))))
G129: 360-GRAD(ARCCOS((SIN(BOGENMASS(DEKL))/COS(BOGENMASS(BREITE)))))

Sheet Tabelle4
B2: Mond
B4: DATUM | C4: =Tabelle1!B10 -> 2019-01-21T16:15:48.450 | D4: UTC
B6: Julianisches Datum: Anzahl der Tage seit dem 01. Januar -4723, 00:00 UT
B10: T: Anzahl der dem 01.01.2000 vergangenen Jahrhunderte seit
B15: Julianisches Datum | D15: =2451544.5+C4-DATE(2000,1,1) -> 2458505.178
B17: Differenz zu J2000 | D17: =C4-DATE(2000,1,1) -> 6960.677644 | E17: Tage
B19: T | D19: =(D15-2451545)/36525 -> 0.1905592784
B24: Daten aus : Montenbruck, Grundlagen der Ephemeridenrechnung, Springer Spektrum Verlag, 2005
B28: Ekliptikale Länge und Breite des Mondes
I30: WERT-GANZZAHL(WERT/360)*360
B31: L0 | C31: Mittlere Länge des Mondes | G31: =218.31665+481267.88134*$D$19-0.0011327*$D$19^2 -> 91928.3768 | I31: =G31-INT(G31/360)*360 -> 128.3768012 | K31: 218,31665 + 481267,88134*T - 0,0011327*T^2
B32: l | C32: Mittlere Anomalie des Mondes | G32: =134.96341+477198.86763*$D$19+0.008997*$D$19^2 -> 91069.63561 | I32: =G32-INT(G32/360)*360 -> 349.6356126 | K32: 134,96341 + 477198,86763*T + 0,008997*T^2
B33: l´ | C33: Mittlere Anomalie der Sonne | G33: =357.52911+35999.05029*$D$19+0.000154*$D$19^2 -> 7217.482162 | I33: =G33-INT(G33/360)*360 -> 17.48216247 | K33: 357,52911 + 35999,05029*T + 0,000154*T^2
B34: F | C34: Winkel Mond / Aufsteigender Knoten | G34: =93.2721+483202.01753*$D$19+0.003403*$D$19^2 -> 92171.90001 | I34: =G34-INT(G34/360)*360 -> 11.90001261 | K34: 93,2721 + 483202,01753*T +0,003403*T^2
B35: D | C35: Mittlerer Abstand Mond - Sonne | G35: =297.85002+445267.11152*$D$19+0.00163*$D$19^2 -> 85147.62955 | I35: =G35-INT(G35/360)*360 -> 187.6295522 | K35: 297,85002 + 445267,11152*T + 0,00163*T^2
B37: e | C37: Exzentrizität der Bahn | G37: 0.055545526
B39: r | C39: Mittlerer Bahnradius des Mondes (Mill. Km) | G39: 0.3844
C41: Siderische Umlaufzeit (Tage) | G41: 27.321662
B44: Wahre Anomalie | D44: =I32+180/PI()*((2*G37-0.25*G37^3)*SIN(RADIANS(I32))+5/4*G37^2*SIN(RADIANS(2*I32))+13/12*G37^3*SIN(RADIANS(3*I32))) -> 348.4072285 | F44: I34+180/PI()*((2*G39-0,25*G39^3)*SIN(BOGENMASS(I34))+5/4*G39^2*SIN(BOGENMASS(2*I34))+13/12*G39^3*SIN(BOGENMASS(3*I34)))
B45: r | D45: =G39*(1-G37^2)/(1+G37*COS(RADIANS(D44))) -> 0.3634384395
D46: =D45*1000000 -> 363438.4395 | I46: TRY | J46: 370299 | K46: Radius eingegeben (timeanddate)
J47: =($D$49/(J46^2*PI()))*360 -> 14.19897734 | K47: korrigierte Winkelgeschwindigkeit
B48: Mittlere Winkelgeschw. | D48: =360/G41 -> 13.17635801 | E48: Grad / Tag | J48: =J47/24 -> 0.5916240557
B49: Fläche der Umlaufbahn | D49: =G39^2*PI()*D48/360*1000000000000 -> 1.699063133e+10 | E49: km2 | F49: A=r2*PI*Theta/360°
B50: aktuelle Winkelgeschw. | D50: =($D$49/($D$46^2*PI()))*360 -> 14.74009988 | E50: Grad / Tag
D51: =D50/24 -> 0.6141708282 | E51: Grad / Stunde
B53: Berücksichtigung von Störfaktoren
G58: =I31+6.288889*SIN(RADIANS(I32))+0.2136111*SIN(RADIANS(2*I32))+0.01*SIN(RADIANS(3*I32)) -> 127.1646104 | I58: I33+6,288889*SIN(BOGENMASS(I34))+0,2136111*SIN(BOGENMASS(2*I34))+0,01*SIN(BOGENMASS(3*I34))
G59: =1.273889*SIN(RADIANS(I32-2*I35)) -> -0.5509002707 | I59: 1,273889*SIN(BOGENMASS(I34-2*I37))
G60: =0.6583334*SIN(RADIANS(2*I35)) -> 0.1732631591 | I60: 0,6583334*SIN(BOGENMASS(2*I37))
G61: =0.1855556*SIN(RADIANS(I33)) -> 0.05574254817 | I61: 0,1855556*SIN(BOGENMASS(I35))
G62: =0.1144445*SIN(RADIANS(2*I34)) -> 0.04618358578 | I62: 0,1144445*SIN(BOGENMASS(2*I36))
G63: =0.058889*SIN(RADIANS(2*I32-2*I35)) -> -0.03460400642 | I63: 0,058889*SIN(BOGENMASS(2*I34-2*I37))
G64: =0.057222*SIN(RADIANS(I32+I33-2*I35)) -> -0.008103512604 | I64: 0,057222*SIN(BOGENMASS(I34+I35-2*I37))
G65: =0.053333*SIN(RADIANS(I32+2*I35)) -> 0.004550641165 | I65: 0,053333*SIN(BOGENMASS(I34+2*I37))
G66: =0.0458333*SIN(RADIANS(I33-2*I35)) -> 0.00177787129 | I66: 0,0458333*SIN(BOGENMASS(I35-2*I37))
G67: =0.041111*SIN(RADIANS(I32-I33)) -> -0.01920316035 | I67: 0,041111*SIN(BOGENMASS(I34-I35))
G68: =0.0347222*SIN(RADIANS(I35)) -> -0.00460998405 | I68: 0,0347222*SIN(BOGENMASS(I37))
G69: =0.030555*SIN(RADIANS(I32+I33)) -> 0.003786049431 | I69: 0,030555*SIN(BOGENMASS(I34+I35))
G70: =0.0152778*SIN(RADIANS(2*I34-2*I35)) -> 0.002268993626 | I70: 0,0152778*SIN(BOGENMASS(2*I36-2*I37))
F72: l | G72: =G58-G59+G60-G61-G62-G63-G64+G65-G66+G67-G68-G69-G70 -> 127.8116798 | I72: G50-G51+G52-G53-G54-G55-G56+G57-G58+G59-G60-G61-G62
G76: =5.145*SIN(RADIANS(I34+G72-I31+0.114*SIN(RADIANS(2*I34))+0.15*SIN(RADIANS(I33)))) -> 1.01923177 | I76: 5,145*SIN(BOGENMASS(I36+G64-I33+0,114*SIN(BOGENMASS(2*I36))+0,15*SIN(BOGENMASS(I35))))
G77: =0.14611*SIN(RADIANS(+I34-2*I35)) -> -0.008561115792 | I77: 0,14611*SIN(BOGENMASS(+I36-2*I37))
G78: =0.012222*SIN(RADIANS(+I32+I34-2*I35)) -> -0.002899501543 | I78: 0,012222*SIN(BOGENMASS(+I34+I36-2*I37))
G79: =0.008611*SIN(RADIANS(-I32+I34-2*I35)) -> 0.001050206849 | I79: 0,008611*SIN(BOGENMASS(-I34+I36-2*I37))
G80: =0.0059444*SIN(RADIANS(-2*I32+I34)) -> 0.003205184784 | I80: 0,0059444*SIN(BOGENMASS(-2*I34+I36))
G81: =0.0063888*SIN(RADIANS(I33+I34-2*I35)) -> 0.001558902459 | I81: 0,0063888*SIN(BOGENMASS(I35+I36-2*I37))
G82: =0.0058333*SIN(RADIANS(-I32+I34)) -> 0.002210127818 | I82: 0,0058333*SIN(BOGENMASS(-I34+I36))
G83: =0.0030555*SIN(RADIANS(-I33+I34-2*I35)) -> -0.001087085689 | I83: 0,0030555*SIN(BOGENMASS(-I35+I36-2*I37))
F85: b | G85: =G76-G77+G78-G79-G80-G81+G82+G83 -> 1.020202133 | I85: G68-G69+G70-G71-G72-G73+G74+G75
B86: Umwandlung in karthesisches System (X,Y,Z)
B88: X(Ekliptik) = | E88: =G39*COS(RADIANS(G72))*COS(RADIANS(G85)) -> -0.2356260257 | I88: 1*COS(BOGENMASS(G64))*COS(BOGENMASS(G77)) | P88: r*COS(l)*COS(d) | S88: Bahnradius = 1
B90: y(Ekliptik) = | E90: =G39*SIN(RADIANS(G72))*COS(RADIANS(G85)) -> 0.3036394122 | I90: 1*SIN(BOGENMASS(G64))*COS(BOGENMASS(G77)) | P90: r*SIN(l)*COS(d)
B92: z(Ekliptik) = | E92: =G39*SIN(RADIANS(G85)) -> 0.006844221002 | I92: 1*SIN(BOGENMASS(G77)) | P92: r*SIN(d)
B94: Schiefe der Ekliptik e | E94: =23.439-0.0000004*D17 -> 23.43621573 | G94: =23.439-0.0000004*D17 -> 23.43621573 | I94: 23,439-0,0000004*D17
B97: X(Äquator) = | E97: =E88 -> -0.2356260257 | I97: E80 | P97: = X(Ekliptik)
B99: y(Äquator) = | E99: =E90*COS(RADIANS(E94))-E92*SIN(RADIANS(E94)) -> 0.2758680589 | I99: E82*COS(BOGENMASS(E86))-E84*SIN(BOGENMASS(E86)) | P99: y(Ekliptik)*COS(e) -z(Ekliptik)*SIN(e)
B101: z(Äquator) = | E101: =E90*SIN(RADIANS(E94))+E92*COS(RADIANS(E94)) -> 0.1270454646 | I101: E82*SIN(BOGENMASS(E86))+E84*COS(BOGENMASS(E86)) | P101: y(Ekliptik)*SIN(e) -z(Ekliptik)*COS(e)
B104: r= | E104: =SQRT(E97^2+E99^2+E101^2) -> 0.3844
C106: =ATAN2(E97,E99)*180/PI() -> 130.5014945 | I106: ARCTAN2(E89;E91)*180/PI()
C107: Stundenwinkel | D107: =C106-INT(C106/360)*360 -> 130.5014945 | F107: =C106-INT(C106/360)*360 -> 130.5014945 | I107: C98-GANZZAHL(C98/360)*360 | L107: oder | M107: WENN(C98<0;360+C98;C98)
C109: Stundenwinkel/15 | D109: =D107/15 -> 8.700099633 | I109: D99/15
B110: Rektaszension | E110: =D109/24 -> 08:42:00.359 | I110: D101/24
B111: (geozentrisch)
B113: Deklination | E113: =ASIN(E101/E104)*180/PI() -> 19.29932597 | I113: ARCSIN(E93/E96)*180/PI()
B114: (geozentrisch)
C116: Alternativ | E116: =ATAN2(E101,SQRT(E97^2+E99^2))*180/PI() -> 70.70067403 | I116: ARCTAN2(E93;WURZEL(E89^2+E91^2))*180/PI()
E117: =90-E116 -> 19.29932597 | I117: 90-E108
B121: Topzentrische Deklination
C125: Erdradius | E125: 6370
C127: Mondentfernung | E127: =D45*1000000 -> 363438.4395
C129: Vereinfachte Rechnung
C131: Parallaxe | E131: =ATAN(E125/E127)*180/PI() -> 1.004122596 | F131: Grad | I131: ARCTAN(E117/E119)*180/PI()
C133: Verbesserte Deklination | E133: =E113-E131 -> 18.29520338 | I133: E105-E123
C135: Berechnung unter Einschluss der geographischen Breite
C137: Geographische Breite | E137: =Tabelle1!M6 -> 52.38 | I137: Übernahme Tabelle 1
C139: Dekl | E139: =E113 -> 19.29932597 | I139: E105
E142: =E137-E139 -> 33.08067403 | I142: E129-E131
C144: Breite - Deklination | E144: =SQRT(E125^2+E127^2-2*E125*E127*COS(RADIANS(E142))) -> 358117.8766 | I144: WURZEL(E117^2+E119^2-2*E117*E119*COS(BOGENMASS(E134))) | O144: Kosinussatz
C146: Parallaxe | E146: =ASIN(E125*SIN(RADIANS(E142))/E144)*180/PI() -> 0.5562779268 | I146: ARCSIN(E117*SIN(BOGENMASS(E134))/E136)*180/PI() | O146: Sinussatz
C148: Verbesserte Deklination | E148: =E113-E146 -> 18.74304805 | I148: Geozentrische Deklination - Parallaxe
B155: Topozentrische Rektaszension und Deklination:
B156: nach Schlyter
C161: Mondparallaxe mpar | G161: =ATAN(E125/E127)*180/PI() -> 1.004122596 | I161: ARCTAN(E117/E119)*180/PI()
C166: geographische Breite in geozentrische Breite | G166: =Tabelle1!M6-0.1924*SIN(RADIANS(2*Tabelle1!M6)) -> 52.19394891 | I166: Tabelle1!I6-0,1924*SIN(BOGENMASS(2*Tabelle1!I6))
C168: Korrektur Erdradius (Berücksichtung der Abplattung) | G168: =0.99833+0.00167*COS(RADIANS(2*Tabelle1!M6)) -> 0.9979045329 | I168: 0,99833+0,00167*COS(BOGENMASS(2*Tabelle1!I6))
F170: Sternzeit | G170: =Tabelle3!F8 -> 32.69843569 | I170: Tabelle3!F8
F173: HA | G173: =G170-D107 -> -97.8030588 | I173: G162-D99
C177: Hilfswinkel g | G177: =ATAN(TAN(RADIANS(G166))/COS(RADIANS(G170-D107)))*180/PI() -> -83.98687851 | I177: ARCTAN(TAN(BOGENMASS(G158))/COS(BOGENMASS(G162-D99)))*180/PI()
C182: Topozentrische Rektaszension und Deklination
G184: =G161*G168*COS(RADIANS(G166))*SIN(RADIANS(G173))/COS(RADIANS(E113)) -> -0.644773585 | I184: G153*G160*COS(BOGENMASS(G158))*SIN(BOGENMASS(G165))/COS(BOGENMASS(E105))
G186: =D107-G184 -> 131.1462681 | I186: D99-G176
F188: ► | G188: =G186/15/24 -> 08:44:35.104 | I188: G178/15/24
G190: =G161*G168*SIN(RADIANS(G166))*SIN(RADIANS(G177-E113))/SIN(RADIANS(G177)) -> 0.7747577821 | I190: G153*G160*SIN(BOGENMASS(G158))*SIN(BOGENMASS(G169-E105))/SIN(BOGENMASS(G169))
F192: ► | G192: =E113-G190 -> 18.52456819 | I192: E105-G182
G195: Vereinfacht
H196: RA top | I196: =D107-(G161*COS(RADIANS(Tabelle1!M6))*SIN(RADIANS(G173))/COS(RADIANS(E113))) -> 131.1449143 | K196: geringer Genauigkeitsverlust | O196: Stundenwinkel-(Parallaxe*COS(BOGENMASS(Geogr. Breite))*SIN(BOGENMASS(Sternzeit - HA))/COS(BOGENMASS(Deklination)))
I198: =I196/15 -> 8.74299429
I200: =I198/24 -> 08:44:34.779
H202: DEKL top | I202: =E113-(G161*SIN(RADIANS(Tabelle1!M6))*SIN(RADIANS(E113))/SIN(RADIANS(E113))) -> 18.50398395
C204: Diagramm Erde, Sonnenlicht und Mond
C206: Mond | D206: =E127/10^6 -> 0.3634384395 | E206: =G72 -> 127.8116798 | F206: =D206*SIN(RADIANS(E206)) -> 0.2871272901 | G206: =D206*SIN(RADIANS(90-E206)) -> -0.2228125189 | I206: D198*SIN(BOGENMASS(E198)) | L206: D198*SIN(BOGENMASS(90-E198))
F207: =D207*SIN(RADIANS(90-E207)) -> 0 | G207: =D207*SIN(RADIANS(E207)) -> 0
C208: Sonne | D208: 149.7 | E208: =Tabelle3!E53 -> 301.3329187 | F208: =D208*SIN(RADIANS(E208)) -> -127.8677827 | G208: =D208*SIN(RADIANS(90-E208)) -> 77.84548896

Sheet Tabelle5
A2: Planeten
B5: DATUM | C5: =Tabelle1!B10 -> 2019-01-21T16:15:48.450
E12: Merkur | F12: Venus | G12: Erde | H12: Mars | I12: Jupiter | J12: Saturn | K12: Uranus | L12: Neptun
E14: Tabelle2: | F14: Tabelle2: | G14: Tabelle2: | H14: Tabelle2: | I14: Tabelle2 | J14: Tabelle2: | K14: Tabelle2: | L14: Tabelle2:
B15: W | E15: =Tabelle2!N41 -> 48.30804594 | F15: =Tabelle2!N42 -> 76.62792149 | G15: =Tabelle2!N43 -> -12.22551838 | H15: =Tabelle2!N44 -> 49.52453815 | I15: =Tabelle2!N45 -> 100.6205786 | J15: =Tabelle2!N46 -> 113.6308207 | K15: =Tabelle2!N47 -> 74.14087823 | L15: =Tabelle2!N48 -> 131.7136839 | N15: Länge des aufsteigenden Knotens (°)
B16: i | E16: =Tabelle2!L41 -> 7.003625542 | F16: =Tabelle2!L42 -> 3.394558611 | G16: =Tabelle2!L43 -> -0.002434681258 | H16: =Tabelle2!L44 -> 1.849261793 | I16: =Tabelle2!L45 -> 1.305080327 | J16: =Tabelle2!L46 -> 2.484783421 | K16: =Tabelle2!L47 -> 0.7697493698 | L16: =Tabelle2!L48 -> 1.768977323 | N16: Bahnneigung (Inklination, °)
B17: w | E17: =Tabelle2!J41-Tabelle2!N41 -> 29.17876491 | F17: =Tabelle2!J42-Tabelle2!N42 -> 54.89929939 | G17: =Tabelle2!J43-Tabelle2!N43 -> 115.2361371 | H17: =Tabelle2!J44-Tabelle2!N44 -> 286.5989188 | I17: =Tabelle2!J45-Tabelle2!N45 -> -85.8222685 | J17: =Tabelle2!J46-Tabelle2!N46 -> -21.30204159 | K17: =Tabelle2!J47-Tabelle2!N47 -> 96.89283968 | L17: =Tabelle2!J48-Tabelle2!N48 -> -86.78703219 | N17: Argument des Perihels (Länge Perihel - Länge aufsteigender Knoten)
B18: a | E18: =Tabelle2!C41 -> 0.3870990558 | F18: =Tabelle2!C42 -> 0.7233321653 | G18: =Tabelle2!C43 -> 1.0000001 | H18: =Tabelle2!C44 -> 1.52364855 | I18: =Tabelle2!C45 -> 5.20347875 | J18: =Tabelle2!C46 -> 9.536495727 | K18: =Tabelle2!C47 -> 19.19155363 | L18: =Tabelle2!C48 -> 30.06872491 | N18: Mittlerer Bahnradius (AU)
B19: e | E19: =Tabelle2!H41 -> 0.2056355054 | F19: =Tabelle2!H42 -> 0.006763820183 | G19: =Tabelle2!H43 -> 0.01670297113 | H19: =Tabelle2!H44 -> 0.09343501037 | I19: =Tabelle2!H45 -> 0.04836811596 | J19: =Tabelle2!H46 -> 0.0540805466 | K19: =Tabelle2!H47 -> 0.0471312179 | L19: =Tabelle2!H48 -> 0.008590653038 | N19: Exzentrizität
B20: M | E20: =Tabelle2!C56 -> 218.1690293 | F20: =Tabelle2!C57 -> 41.56521897 | G20: =Tabelle2!C58 -> 17.46815868 | H20: =Tabelle2!C59 -> 66.69287842 | I20: =Tabelle2!C60 -> 237.904694 | J20: =Tabelle2!C61 -> 190.5770615 | K20: =Tabelle2!C62 -> 223.8503492 | L20: =Tabelle2!C63 -> 301.5825989 | N20: Mittlere Anomalie
B23: Perihel | E23: =E15+E17 -> 77.48681086 | F23: 131.5272209 | G23: 103.0106187 | H23: 336.123457 | I23: 14.79831013 | J23: 92.32877915 | K23: =K15+K17 -> 171.0337179 | L23: =L15+L17 -> 44.92665167
B25: E= | E25: =E20+(180/PI()*E19*SIN(RADIANS(E20))*(1+E19*COS(RADIANS(E20)))) -> 212.0650471 | F25: =F20+(180/PI()*F19*SIN(RADIANS(F20))*(1+F19*COS(RADIANS(F20)))) -> 41.82364108 | G25: 17.76000679 | H25: 71.79121349 | I25: =I20+(180/PI()*I19*SIN(RADIANS(I20))*(1+I19*COS(RADIANS(I20)))) -> 235.6172893 | J25: 190.0385284 | K25: =K20+(180/PI()*K19*SIN(RADIANS(K20))*(1+K19*COS(RADIANS(K20)))) -> 222.0431458 | L25: 301.1614071 | N25: Exzentrische Anomalie | P25: M+(180/PI()*e*SIN(BOGENMASS(M))*(1+e*COS(BOGENMASS(M)))) | Y25: Sonne | Z25: Merkur | AA25: Venus | AB25: Erde | AC25: Mars | AD25: Jupiter | AE25: Saturn | AF25: Uranus | AG25: Neptun
Y26: 0 | Z26: =E32 -> -0.4081338433 | AA26: =F32 -> 0.5341352693 | AB26: 0.9356392928 | AC26: 0.3341083276 | AD26: -3.190158606 | AE26: -9.906283624 | AF26: -15.15722061 | AG26: 15.30077529
C27: Iteration | E27: =E25-(E25-180/PI()*E19*SIN(RADIANS(E25))-E20)/(1-E19*SIN(RADIANS(E25))) -> 211.9290076 | F27: =F25-(F25-180/PI()*F19*SIN(RADIANS(F25))-F20)/(1-F19*SIN(RADIANS(F25))) -> 41.82364507 | G27: 17.76007633 | H27: 71.77696812 | I27: 235.6175821 | J27: 190.0369604 | K27: =K25-(K25-180/PI()*K19*SIN(RADIANS(K25))-K20)/(1-K19*SIN(RADIANS(K25))) -> 222.0419429 | L27: =L25-(L25-180/PI()*L19*SIN(RADIANS(L25))-L20)/(1-L19*SIN(RADIANS(L25))) -> 301.1614099 | N27: E-(E-180/PI()*e*SIN(BOGENMASS(E))-M)/(1-e*SIN(BOGENMASS(E))) | Y27: 0 | Z27: =E34 -> -0.2003491005 | AA27: =F34 -> 0.4823358307 | AB27: 0.3049892648 | AC27: 1.440901033 | AD27: -4.289336257 | AE27: -1.659620829 | AF27: -12.8378105 | AG27: -25.72924843
C28: Alternativ | E28: =Tabelle2!F56 -> 211.9335341 | F28: =Tabelle2!F57 -> 41.82364508 | G28: =Tabelle2!F58 -> 17.76007611 | H28: =Tabelle2!F59 -> 71.77983137 | I28: =Tabelle2!F60 -> 235.6177097 | J28: =Tabelle2!F61 -> 190.036949 | K28: =Tabelle2!F62 -> 222.0419819 | L28: =Tabelle2!F63 -> 301.1614098 | N28: M+180/PI()*(((e-1/8*e^3)*SIN(BOGENMASS(M))+(1/2)*(e^2)*SIN(BOGENMASS(2*M)))+3/8*e^3*SIN(BOGENMASS(3*M)))
B30: Umwandlung ins ebene Koordinatensystem (X,Y)
B32: x | E32: =E18*(COS(RADIANS(E27))-E19) -> -0.4081338433 | F32: =F18*(COS(RADIANS(F27))-F19) -> 0.5341352693 | G32: 0.9356392928 | H32: 0.3341083276 | I32: -3.190158606 | J32: -9.906283624 | K32: =K18*(COS(RADIANS(K27))-K19) -> -15.15722061 | L32: 15.30077529 | N32: a * (cos(E) - e)
B34: y | E34: =E18*SQRT(1-E19^2)*SIN(RADIANS(E27)) -> -0.2003491005 | F34: 0.4823358307 | G34: 0.3049892648 | H34: 1.440901033 | I34: =I18*SQRT(1-I19^2)*SIN(RADIANS(I27)) -> -4.289336257 | J34: -1.659620829 | K34: =K18*SQRT(1-K19^2)*SIN(RADIANS(K27)) -> -12.8378105 | L34: -25.72924843 | N34: a * WURZEL(1 - e^2) * sinE
B36: Entfernung (r) und Wahre Anomalie (v)
B38: r | E38: =SQRT(E32^2+E34^2) -> 0.4546570093 | F38: =SQRT(F32^2+F34^2) -> 0.7196862785 | G38: 0.9840931551 | H38: 1.479129529 | I38: 5.345607305 | J38: 10.04434152 | K38: =SQRT(K32^2+K34^2) -> 19.8633007 | L38: 29.9350622 | N38: WURZEL( x^2 + y^2 )
D39: Alternativ | E39: =E18*(1-E19^2)/(1+E19*COS(RADIANS(E41))) -> 0.4546662658 | F39: =F18*(1-F19^2)/(1+F19*COS(RADIANS(F41))) -> 0.7196862785 | G39: 0.9840931549 | H39: 1.479145746 | I39: 5.34560589 | J39: 10.04434184 | K39: 19.86329968 | L39: 29.93506221 | N39: E18*(1-E19^2)/(1+E19*COS(BOGENMASS(E41))) | S39: a*(1-e^2)/(1+e*COS(BOGENMASS(T)))
B40: v | E40: =IF(ATAN2(E32,E34)*180/PI()<0,360+ATAN2(E32,E34)*180/PI(),ATAN2(E32,E34)*180/PI()) -> 206.1459913 | F40: 42.08272662 | G40: 18.05435514 | H40: 76.9452679 | I40: =IF(ATAN2(I32,I34)*180/PI()<0,360+ATAN2(I32,I34)*180/PI(),ATAN2(I32,I34)*180/PI()) -> 233.3602769 | J40: 189.5105628 | K40: =IF(ATAN2(K32,K34)*180/PI()<0,360+ATAN2(K32,K34)*180/PI(),ATAN2(K32,K34)*180/PI()) -> 220.2638171 | L40: 300.7392769 | N40: arctan2( y, x )
D41: Alternativ | E41: =Tabelle2!H56 -> 206.1354928 | F41: =Tabelle2!H57 -> 42.08272665 | G41: =Tabelle2!H58 -> 18.05435255 | H41: =Tabelle2!H59 -> 76.95231518 | I41: =Tabelle2!H60 -> 233.3606564 | J41: =Tabelle2!H61 -> 189.5103661 | K41: =Tabelle2!H62 -> 220.263911 | L41: =Tabelle2!H63 -> 300.7392765 | N41: M + 180/pi * [ (2 * e - e^3/4) * sin(M) + 5/4 * e^2 * sin(2*M) + 13/12 * e^3 * sin(3*M) ]
B42: Heliozentrisch Ekliptikale Position des Planeten
B44: x(Ekliptik P) = | E44: =E38*(COS(RADIANS(E15))*COS(RADIANS(E40+E17))-SIN(RADIANS(E15))*SIN(RADIANS(E40+E17))*COS(RADIANS(E16))) -> 0.1050786677 | F44: =F38*(COS(RADIANS(F15))*COS(RADIANS(F40+F17))-SIN(RADIANS(F15))*SIN(RADIANS(F40+F17))*COS(RADIANS(F16))) -> -0.7139956753 | G44: -0.5078016905 | H44: 0.888781034 | I44: =I38*(COS(RADIANS(I15))*COS(RADIANS(I40+I17))-SIN(RADIANS(I15))*SIN(RADIANS(I40+I17))*COS(RADIANS(I16))) -> -1.98804201 | J44: 2.062546919 | K44: =K38*(COS(RADIANS(K15))*COS(RADIANS(K40+K17))-SIN(RADIANS(K15))*SIN(RADIANS(K40+K17))*COS(RADIANS(K16))) -> 16.97164411 | L44: 28.99719639 | N44: r*(COS(W)*COS(v+w)-SIN(W)*SIN(v+w))*COS(i))
D45: Alternativ | E45: =E39*(COS(RADIANS(E15))*COS(RADIANS(E41+E17))-SIN(RADIANS(E15))*SIN(RADIANS(E41+E17))*COS(RADIANS(E16))) -> 0.1050001063 | F45: =F39*(COS(RADIANS(F15))*COS(RADIANS(F41+F17))-SIN(RADIANS(F15))*SIN(RADIANS(F41+F17))*COS(RADIANS(F16))) -> -0.7139956753 | G45: -0.5078016523 | H45: 0.8886454153 | I45: =I39*(COS(RADIANS(I15))*COS(RADIANS(I41+I17))-SIN(RADIANS(I15))*SIN(RADIANS(I41+I17))*COS(RADIANS(I16))) -> -1.988008623 | J45: 2.06251326 | K45: 16.97162631 | L45: 28.99719635
B46: Y(Ekliptik P) = | E46: =E38*(SIN(RADIANS(E15))*COS(RADIANS(E40+E17))+COS(RADIANS(E15))*SIN(RADIANS(E40+E17))*COS(RADIANS(E16))) -> -0.4399919577 | F46: =F38*(SIN(RADIANS(F15))*COS(RADIANS(F40+F17))+COS(RADIANS(F15))*SIN(RADIANS(F40+F17))*COS(RADIANS(F16))) -> 0.07980862021 | G46: 0.8429571639 | H46: 1.182321331 | I46: =I38*(SIN(RADIANS(I15))*COS(RADIANS(I40+I17))+COS(RADIANS(I15))*SIN(RADIANS(I40+I17))*COS(RADIANS(I16))) -> -4.961747268 | J46: -9.829892067 | K46: =K38*(SIN(RADIANS(K15))*COS(RADIANS(K40+K17))+COS(RADIANS(K15))*SIN(RADIANS(K40+K17))*COS(RADIANS(K16))) -> 10.31896724 | L46: =L38*(SIN(RADIANS(L15))*COS(RADIANS(L40+L17))+COS(RADIANS(L15))*SIN(RADIANS(L40+L17))*COS(RADIANS(L16))) -> -7.416480944 | N46: r*(SIN(W)*COS(v+w)+COS(W)*SIN(v+w))*COS(i))
D47: Alternativ | E47: =E39*(SIN(RADIANS(E15))*COS(RADIANS(E41+E17))+COS(RADIANS(E15))*SIN(RADIANS(E41+E17))*COS(RADIANS(E16))) -> -0.4400207796 | F47: =F39*(SIN(RADIANS(F15))*COS(RADIANS(F41+F17))+COS(RADIANS(F15))*SIN(RADIANS(F41+F17))*COS(RADIANS(F16))) -> 0.07980861988 | G47: 0.8429571866 | H47: 1.182443539 | I47: =I39*(SIN(RADIANS(I15))*COS(RADIANS(I41+I17))+COS(RADIANS(I15))*SIN(RADIANS(I41+I17))*COS(RADIANS(I16))) -> -4.961759129 | J47: -9.829899448 | K47: 10.31899453 | L47: -7.41648113
B48: Z(Ekliptik P) = | E48: =E38*SIN(RADIANS(E40+E17))*SIN(RADIANS(E16)) -> -0.04559108281 | F48: =F38*SIN(RADIANS(F40+F17))*SIN(RADIANS(F16)) -> 0.04229774531 | G48: -3.043822953e-05 | H48: 0.002950689641 | I48: =I38*SIN(RADIANS(I40+I17))*SIN(RADIANS(I16)) -> 0.06534886904 | J48: 0.08898706366 | K48: =K38*SIN(RADIANS(K40+K17))*SIN(RADIANS(K16)) -> -0.1814560801 | L48: -0.516101726 | N48: r*SIN(v+w)*SIN(i)) | Y48: Sonne | Z48: Merkur | AA48: Venus | AB48: Erde | AC48: Mars | AD48: Jupiter | AE48: Saturn | AF48: Uranus | AG48: Neptun
D49: Alternativ | E49: =E39*SIN(RADIANS(E41+E17))*SIN(RADIANS(E16)) -> -0.04558623099 | F49: =F39*SIN(RADIANS(F41+F17))*SIN(RADIANS(F16)) -> 0.04229774531 | G49: -3.043823083e-05 | H49: 0.00295658171 | I49: =I39*SIN(RADIANS(I41+I17))*SIN(RADIANS(I16)) -> 0.06534817126 | J49: 0.08898853021 | K49: -0.1814557499 | L49: -0.5161017211 | Y49: 0 | Z49: =E44 -> 0.1050786677 | AA49: -0.7139956753 | AB49: -0.5078016905 | AC49: 0.888781034 | AD49: -1.98804201 | AE49: 2.062546919 | AF49: 16.97164411 | AG49: 28.99719639
E50: Merkur | F50: Venus | G50: Erde | H50: Mars | I50: Jupiter | J50: Saturn | K50: Uranus | L50: Neptun | Y50: 0 | Z50: =E46 -> -0.4399919577 | AA50: 0.07980862021 | AB50: 0.8429571639 | AC50: 1.182321331 | AD50: -4.961747268 | AE50: -9.829892067 | AF50: 10.31896724 | AG50: -7.416480944
B51: LÄNGE | E51: =IF(ATAN2(E44,E46)*180/PI()<0,360+ATAN2(E44,E46)*180/PI(),ATAN2(E44,E46)*180/PI()) -> 283.4317633 | F51: =IF(ATAN2(F44,F46)*180/PI()<0,360+ATAN2(F44,F46)*180/PI(),ATAN2(F44,F46)*180/PI()) -> 173.6220979 | G51: 121.0649739 | H51: 53.06688371 | I51: 248.1653185 | J51: 281.8501187 | K51: =IF(ATAN2(K44,K46)*180/PI()<0,360+ATAN2(K44,K46)*180/PI(),ATAN2(K44,K46)*180/PI()) -> 31.30011309 | L51: 345.6532764 | N51: arctan2(y;x) | O51: WENN(ARCTAN2(E44;E46)*180/PI()<0;360+ARCTAN2(E44;E46)*180/PI();ARCTAN2(E44;E46)*180/PI())
E52: =ATAN2(E44,E46)*180/PI()-INT((ATAN2(E44,E46)*180/PI())/360)*360 -> 283.4317633 | F52: =ATAN2(F44,F46)*180/PI()-INT((ATAN2(F44,F46)*180/PI())/360)*360 -> 173.6220979 | G52: =ATAN2(G44,G46)*180/PI()-INT((ATAN2(G44,G46)*180/PI())/360)*360 -> 121.0649739 | H52: 53.06688371 | I52: 248.1653185 | J52: 281.8501187 | K52: 31.30011309 | L52: 345.6532764 | N52: alternativ | O52: ARCTAN2(E44;E46)*180/PI()-GANZZAHL((ARCTAN2(E44;E46)*180/PI())/360)*360
E54: =ATAN2(E48,SQRT(E44^2+E46^2))*180/PI() -> 95.7550509 | F54: =ATAN2(F48,SQRT(F44^2+F46^2))*180/PI() -> 86.63064347 | G54: 90.00177217 | H54: 89.88570158 | I54: 89.2995543 | J54: 89.49238585 | K54: 90.52341815 | L54: 90.98786886 | N54: arctan2(z;WURZEL(x^2+y^2)
E55: =ATAN2(E48,SQRT(E44^2+E46^2))*180/PI()-INT(ATAN2(E48,SQRT(E44^2+E46^2))*180/PI()/360)*360 -> 95.7550509 | F55: =ATAN2(F48,SQRT(F44^2+F46^2))*180/PI()-INT(ATAN2(F48,SQRT(F44^2+F46^2))*180/PI()/360)*360 -> 86.63064347 | G55: 90.00177217 | H55: 89.88570158 | I55: 89.2995543 | J55: 89.49238585 | K55: 90.52341815 | L55: 90.98786886 | N55: alternativ | O55: ARCTAN2(E48;WURZEL(E44^2+E46^2))*180/PI()-GANZZAHL(ARCTAN2(E48;WURZEL(E44^2+E46^2))*180/PI()/360)*360
E56: =IF(ATAN2(E48,SQRT(E44^2+E46^2))*180/PI()<0,360+ATAN2(E48,SQRT(E44^2+E46^2))*180/PI(),ATAN2(E48,SQRT(E44^2+E46^2))*180/PI()) -> 95.7550509 | F56: =IF(ATAN2(F48,SQRT(F44^2+F46^2))*180/PI()<0,360+ATAN2(F48,SQRT(F44^2+F46^2))*180/PI(),ATAN2(F48,SQRT(F44^2+F46^2))*180/PI()) -> 86.63064347 | G56: =IF(ATAN2(G48,SQRT(G44^2+G46^2))*180/PI()<0,360+ATAN2(G48,SQRT(G44^2+G46^2))*180/PI(),ATAN2(G48,SQRT(G44^2+G46^2))*180/PI()) -> 90.00177217 | H56: =IF(ATAN2(H48,SQRT(H44^2+H46^2))*180/PI()<0,360+ATAN2(H48,SQRT(H44^2+H46^2))*180/PI(),ATAN2(H48,SQRT(H44^2+H46^2))*180/PI()) -> 89.88570158 | I56: 89.2995543 | J56: =IF(ATAN2(J48,SQRT(J44^2+J46^2))*180/PI()<0,360+ATAN2(J48,SQRT(J44^2+J46^2))*180/PI(),ATAN2(J48,SQRT(J44^2+J46^2))*180/PI()) -> 89.49238585 | K56: 90.52341815 | L56: 90.98786886 | O56: WENN(ARCTAN2(E48;WURZEL(E44^2+E46^2))*180/PI()<0;360+ARCTAN2(E48;WURZEL(E44^2+E46^2))*180/PI();ARCTAN2(E48;WURZEL(E44^2+E46^2))*180/PI())
B57: LAT | E57: =IF(E56>E16,90-E56,E56) -> -5.755050897 | F57: =IF(F56>F16,90-F56,F56) -> 3.369356531 | G57: -0.00177217175 | H57: 0.1142984248 | I57: 0.7004457012 | J57: 0.5076141497 | K57: -0.5234181529 | L57: =IF(L56>L16,90-L56,L56) -> -0.9878688617 | O57: WENN LAT>i; 90-LAT
B60: Distanz Sonne-Planet | E60: =SQRT(E44^2+E46^2+E48^2) -> 0.4546570093 | F60: =SQRT(F44^2+F46^2+F48^2) -> 0.7196862785 | G60: 0.9840931551 | H60: 1.479129529 | I60: 5.345607305 | J60: 10.04434152 | K60: =SQRT(K44^2+K46^2+K48^2) -> 19.8633007 | L60: 29.9350622 | N60: WURZEL(x^2+y^2+z^2)
E61: =Tabelle2!J56 -> 0.4546570093 | F61: =Tabelle2!J57 -> 0.7196862785 | G61: =Tabelle2!J58 -> 0.9840931551 | H61: =Tabelle2!J59 -> 1.479129529 | I61: =Tabelle2!J60 -> 5.345607305 | J61: =Tabelle2!J61 -> 10.04434152 | K61: =Tabelle2!J62 -> 19.8633007 | L61: =Tabelle2!J63 -> 29.9350622 | N61: a*(1-e^2)/(1+e*COS(M))
B62: Geozentrische Position der Planeten
B63: Ekliptikale Position
B64: Sonne
C65: x(Ekliptik S) = | E65: =Tabelle3!$E$56 -> 0.511739631 | F65: =Tabelle3!$E$56 -> 0.511739631 | G65: =Tabelle3!$E$56 -> 0.511739631 | H65: =Tabelle3!$E$56 -> 0.511739631 | I65: =Tabelle3!$E$56 -> 0.511739631 | J65: =Tabelle3!$E$56 -> 0.511739631 | K65: =Tabelle3!$E$56 -> 0.511739631 | L65: =Tabelle3!$E$56 -> 0.511739631 | N65: Übername aus Tabelle 3
C67: Y(Ekliptik S) = | E67: =Tabelle3!$E$58 -> -0.8405755143 | F67: =Tabelle3!$E$58 -> -0.8405755143 | G67: =Tabelle3!$E$58 -> -0.8405755143 | H67: =Tabelle3!$E$58 -> -0.8405755143 | I67: =Tabelle3!$E$58 -> -0.8405755143 | J67: =Tabelle3!$E$58 -> -0.8405755143 | K67: =Tabelle3!$E$58 -> -0.8405755143 | L67: =Tabelle3!$E$58 -> -0.8405755143 | N67: Übername aus Tabelle 3
C69: Z(Ekliptik S) = | E69: =Tabelle3!$E$60 -> 0 | F69: =Tabelle3!$E$60 -> 0 | G69: =Tabelle3!$E$60 -> 0 | H69: =Tabelle3!$E$60 -> 0 | I69: =Tabelle3!$E$60 -> 0 | J69: =Tabelle3!$E$60 -> 0 | K69: =Tabelle3!$E$60 -> 0 | L69: =Tabelle3!$E$60 -> 0 | N69: Übername aus Tabelle 3
C71: r (AE) | E71: =SQRT(E65^2+E67^2+E69^2) -> 0.9840958516 | F71: =SQRT(F65^2+F67^2+F69^2) -> 0.9840958516 | G71: 0.9840958516 | H71: 0.9840958516 | I71: 0.9840958516 | J71: 0.9840958516 | K71: 0.9840958516 | L71: 0.9840958516
B73: Addition Koordinaten Sonne + Planet
E74: Merkur | F74: Venus | G74: Erde | H74: Mars | I74: Jupiter | J74: Saturn | K74: Uranus | L74: Neptun
C75: x(Ekliptik S+P) = | E75: =E65+E44 -> 0.6168182987 | F75: -0.2022560443 | G75: 0.003937940419 | H75: 1.400520665 | I75: -1.476302379 | J75: 2.57428655 | K75: 17.48338374 | L75: 29.50893602 | N75: x(Ekliptik S) + x(Ekliptik P)
C77: Y(Ekliptik S+P) = | E77: =E67+E46 -> -1.280567472 | F77: -0.7607668941 | G77: 0.002381649551 | H77: 0.3417458166 | I77: -5.802322782 | J77: -10.67046758 | K77: 9.478391726 | L77: -8.257056459 | N77: Y(Ekliptik S) + Y(Ekliptik P)
C79: Z(Ekliptik S*P) = | E79: =E69+E48 -> -0.04559108281 | F79: 0.04229774531 | G79: -3.043822953e-05 | H79: 0.002950689641 | I79: 0.06534886904 | J79: 0.08898706366 | K79: -0.1814560801 | L79: -0.516101726 | N79: Z(Ekliptik S) + Z(Ekliptik P)
E81: Merkur | F81: Venus | G81: Erde | H81: Mars | I81: Jupiter | J81: Saturn | K81: Uranus | L81: Neptun
C82: r (AE) | E82: =SQRT(E75^2+E77^2+E79^2) -> 1.422109845 | F82: =SQRT(F75^2+F77^2+F79^2) -> 0.7883291659 | G82: =SQRT(G75^2+G77^2+G79^2) -> 0.004602233785 | H82: 1.441616122 | I82: 5.987544476 | J82: 10.97696444 | K82: 19.88822624 | L82: =SQRT(L75^2+L77^2+L79^2) -> 30.64673959 | N82: WURZEL(x^2+y^2+z^2)
C84: Länge l(Ekliptik) | E84: =ATAN2(E75,E77)*180/PI() -> -64.28101086 | F84: =ATAN2(F75,F77)*180/PI() -> -104.8881569 | G84: =ATAN2(G75,G77)*180/PI() -> 31.16536965 | H84: 13.71296176 | I84: -104.2750443 | J84: -76.43638293 | K84: =ATAN2(K75,K77)*180/PI() -> 28.46376595 | L84: -15.63244122 | N84: ARCTAN2(x;y)*180/PI()
E85: =IF(E84<0,360+E84,E84) -> 295.7189891 | F85: =IF(F84<0,360+F84,F84) -> 255.1118431 | G85: =IF(G84<0,360+G84,G84) -> 31.16536965 | H85: 13.71296176 | I85: 255.7249557 | J85: 283.5636171 | K85: 28.46376595 | L85: 344.3675588 | N85: WENN l<0; 360 - l)
C87: Breite b(Ekliptik) | E87: =ATAN2(E79,SQRT(E75^2+E77^2))*180/PI() -> 91.83714661 | F87: =ATAN2(F79,SQRT(F75^2+F77^2))*180/PI() -> 86.92432208 | G87: =ATAN2(G79,SQRT(G75^2+G77^2))*180/PI() -> 90.37894529 | H87: 89.88272732 | I87: 89.37465371 | J87: 89.53551466 | K87: 90.52276214 | L87: =ATAN2(L79,SQRT(L75^2+L77^2))*180/PI() -> 90.96492641 | N87: arctan2(z;WURZEL(x^2+y^2)
E88: =IF(E87>E16,90-E87,E87) -> -1.837146614 | F88: 3.075677915 | G88: -0.3789452871 | H88: 0.1172726765 | I88: 0.6253462909 | J88: 0.4644853369 | K88: -0.5227621447 | L88: -0.9649264148 | N88: WENN b>i; 90 - b)
B91: Drehen des Systems | E91: Merkur | F91: Venus | G91: Erde | H91: Mars | I91: Jupiter | J91: Saturn | K91: Uranus | L91: Neptun
C92: e Schiefe der Ekliptik | E92: 23.4406 | F92: 23.4406 | G92: 23.4406 | H92: 23.4406 | I92: 23.4406 | J92: 23.4406 | K92: 23.4406 | L92: 23.4406
C94: x(Äquator P) = | E94: =E75 -> 0.6168182987 | F94: =F75 -> -0.2022560443 | G94: =G75 -> 0.003937940419 | H94: 1.400520665 | I94: -1.476302379 | J94: 2.57428655 | K94: 17.48338374 | L94: 29.50893602 | N94: x(Äquator P) = x(Ekliptik S+P)
C96: y(Äquator P) = | E96: =E77*COS(RADIANS(E92))-E79*SIN(RADIANS(E92)) -> -1.156750001 | F96: =F77*COS(RADIANS(F92))-F79*SIN(RADIANS(F92)) -> -0.7148090288 | G96: =G77*COS(RADIANS(G92))-G79*SIN(RADIANS(G92)) -> 0.002197207369 | H96: 0.3123687723 | I96: -5.349470001 | J96: -9.825264521 | K96: 8.76835114 | L96: =L77*COS(RADIANS(L92))-L79*SIN(RADIANS(L92)) -> -7.370321859 | N96: y(Ekliptik SP)*COS(e) - z(Ekliptik SP)*SIN(e)
C98: z(Äquator P) = | E98: =E77*SIN(RADIANS(E92))+E79*COS(RADIANS(E92)) -> -0.5512359131 | F98: =F77*SIN(RADIANS(F92))+F79*COS(RADIANS(F92)) -> -0.2638245983 | G98: 0.0009194894495 | H98: 0.1386530197 | I98: -2.248197245 | J98: -4.163048666 | K98: 3.604005314 | L98: =L77*SIN(RADIANS(L92))+L79*COS(RADIANS(L92)) -> -3.758150882 | N98: y(Ekliptik SP)*SIN(e) - z(Ekliptik SP)*COS(e)
B100: Geozentrische Koordinaten
E101: Merkur | F101: Venus | G101: Erde | H101: Mars | I101: Jupiter | J101: Saturn | K101: Uranus | L101: Neptun
C102: r (Erde-Planet) | E102: =SQRT(E94^2+E96^2+E98^2) -> 1.422109845 | F102: =SQRT(F94^2+F96^2+F98^2) -> 0.7883291659 | G102: 0.004602233785 | H102: 1.441616122 | I102: 5.987544476 | J102: 10.97696444 | K102: 19.88822624 | L102: 30.64673959 | N102: WURZEL(x^2+y^2+z^2)
C104: Rektaszension | E104: =IF(ATAN2(E94,E96)*180/PI()<0,360+ATAN2(E94,E96)*180/PI(),ATAN2(E94,E96)*180/PI()) -> 298.0680507 | F104: =IF(ATAN2(F94,F96)*180/PI()<0,360+ATAN2(F94,F96)*180/PI(),ATAN2(F94,F96)*180/PI()) -> 254.2010778 | G104: 29.15970442 | H104: 12.57331941 | I104: 254.5720012 | J104: 284.6818664 | K104: 26.63490182 | L104: =IF(ATAN2(L94,L96)*180/PI()<0,360+ATAN2(L94,L96)*180/PI(),ATAN2(L94,L96)*180/PI()) -> 345.9763887 | N104: ARCTAN2(x;y)*180/PI() | P104: WENN RA<0;360-RA
E105: =E104/15 -> 19.87120338 | F105: =F104/15 -> 16.94673852 | G105: 1.943980295 | H105: 0.8382212941 | I105: 16.97146675 | J105: 18.9787911 | K105: 1.775660121 | L105: 23.06509258 | N105: Winkel → Zeit
E106: =E104/15/24 -> 19:52:16.332 | F106: 16:56:48.259 | G106: 01:56:38.329 | H106: 00:50:17.597 | I106: 16:58:17.280 | J106: 18:58:43.648 | K106: 01:46:32.376 | L106: 23:03:54.333
C108: Deklination | E108: =90-ATAN2(E98,SQRT(E94^2+E96^2))*180/PI() -> -22.80638894 | F108: -19.55204605 | G108: 11.52479548 | H108: 5.519175216 | I108: -22.05392139 | J108: -22.28743055 | K108: 10.4404221 | L108: -7.043801025 | N108: arctan2(z;WURZEL(x^2+y^2)

Sheet Tabelle6
A2: DATUM | B2: =Tabelle1!B10 -> 2019-01-21T16:15:48.450 | G2: Geographische Länge | J2: =Tabelle1!K6 -> 9.73
A4: UHRZEIT | B4: =Tabelle1!D10*24 -> 16.26345833 | C4: UTC | D4: =B4 -> 16.26345833 | G4: Geographische Breite | J4: =Tabelle1!M6 -> 52.38
A7: Julianisches Datum / Anzahl Tage bzw. Jahrhunderte nach Epoche J2000
A9: Julianisches Datum: Anzahl der Tage seit dem 01. Januar -4723, 00:00 UT
A13: T: Anzahl der dem 01.01.2000 vergangenen Jahrhunderte seit
B18: Julianisches Datum (JD) | E18: =2451544.5+B2-DATE(2000,1,1) -> 2458505.178
B20: Differenz zu J2000 | E20: =B2-DATE(2000,1,1) -> 6960.677644 | F20: Tage
B22: T (Jahrhunderte) | E22: =(E18-2451545)/36525 -> 0.1905592784
A26: Rektaszension und Deklination | E26: Sonne | G26: Mond | I26: Merkur | J26: Venus | K26: Mars | L26: Jupiter | M26: Saturn | N26: Uranus | O26: Neptun
B28: Schiefe der Ekliptik | E28: =23.439-0.0000004*E20 -> 23.43621573 | Q28: 23,439-0,0000004*E20
C30: Rektaszensionswinkel | E30: =Tabelle3!E77 -> 303.5665901 | G30: =Tabelle4!G186 -> 131.1462681 | H30: * | I30: =Tabelle5!E104 -> 298.0680507 | J30: =Tabelle5!F104 -> 254.2010778 | K30: =Tabelle5!H104 -> 12.57331941 | L30: =Tabelle5!I104 -> 254.5720012 | M30: =Tabelle5!J104 -> 284.6818664 | N30: =Tabelle5!K104 -> 26.63490182 | O30: =Tabelle5!L104 -> 345.9763887 | Q30: Tabelle3!E77 | S30: *) Mond: Topozentrische Rektaszension und Deklination, Tabelle 4
C31: RA (geozentrisch) | E31: =E30/15/24 -> 20:14:15.982 | G31: =G30/15/24 -> 08:44:35.104 | H31: * | I31: =I30/15/24 -> 19:52:16.332 | J31: =J30/15/24 -> 16:56:48.259 | K31: =K30/15/24 -> 00:50:17.597 | L31: 16:58:17.280 | M31: 18:58:43.648 | N31: 01:46:32.376 | O31: 23:03:54.333
C32: Deklination | E32: =Tabelle3!E81 -> -19.86367328 | G32: =Tabelle4!G192 -> 18.52456819 | H32: * | I32: =Tabelle5!E108 -> -22.80638894 | J32: =Tabelle5!F108 -> -19.55204605 | K32: =Tabelle5!H108 -> 5.519175216 | L32: =Tabelle5!I108 -> -22.05392139 | M32: =Tabelle5!J108 -> -22.28743055 | N32: =Tabelle5!K108 -> 10.4404221 | O32: =Tabelle5!L108 -> -7.043801025 | Q32: Tabelle3!E81 | S32: *) Mond: Topozentrische Rektaszension und Deklination, Tabelle 4
C34: Kulminationshöhe | E34: =90-$J4+E32 -> 17.75632672 | G34: =90-$J4+G32 -> 56.14456819 | I34: =90-$J4+I32 -> 14.81361106 | J34: 18.06795395 | K34: 43.13917522 | L34: 15.56607861 | M34: 15.33256945 | N34: 48.0604221 | O34: 30.57619898 | Q34: 90-$J4+E32
A36: Sternzeit und Stundenwinkel
B38: JD0 | E38: =INT(2451545+$B$2-DATE(2000,1,1)) -> 2458505 | G38: =INT(2451545+$B$2-DATE(2000,1,1)) -> 2458505 | I38: 2458505 | J38: 2458505 | K38: 2458505 | L38: 2458505 | M38: 2458505 | N38: 2458505 | O38: 2458505 | Q38: GANZZAHL(2451545+$B$2-DATUM(2000;1;1))
B40: T0 | E40: =($E38-2451545.5)/36525 -> 0.1905407255 | G40: =($E38-2451545.5)/36525 -> 0.1905407255 | I40: =($E38-2451545.5)/36525 -> 0.1905407255 | J40: 0.1905407255 | K40: 0.1905407255 | L40: 0.1905407255 | M40: 0.1905407255 | N40: 0.1905407255 | O40: 0.1905407255 | Q40: ($E38-2451545,5)/36525
B42: Sternzeit | C42: J2000.0 | E42: =6.697376+2400.05134*$E40+1.002738*$D4 -> 480.3128873 | G42: =6.697376+2400.05134*$E40+1.002738*$D4 -> 480.3128873 | I42: =6.697376+2400.05134*$E40+1.002738*$D4 -> 480.3128873 | J42: 480.3128873 | K42: 480.3128873 | L42: 480.3128873 | M42: 480.3128873 | N42: 480.3128873 | O42: 480.3128873 | Q42: 6,697376+2400,05134*$E40+1,002738*$D4
B44: abzüglich ganzzahlige Vielfache von 24 | E44: =$E42-INT($E42/24)*24 -> 0.3128873082 | G44: =$E42-INT($E42/24)*24 -> 0.3128873082 | I44: =$E42-INT($E42/24)*24 -> 0.3128873082 | J44: =$E42-INT($E42/24)*24 -> 0.3128873082 | K44: 0.3128873082 | L44: 0.3128873082 | M44: 0.3128873082 | N44: 0.3128873082 | O44: 0.3128873082 | Q44: $E42-GANZZAHL($F42/24)*24
B46: Sternzeit Greenwich | E46: =$E$44/24 -> 00:18:46.394 | G46: =$E$44/24 -> 00:18:46.394 | I46: 00:18:46.394 | J46: 00:18:46.394 | K46: 00:18:46.394 | L46: 00:18:46.394 | M46: 00:18:46.394 | N46: 00:18:46.394 | O46: 00:18:46.394 | Q46: $E$44/24
B48: Greenwich-Stundenwinkel | E48: =$E$44*15 -> 4.693309623 | G48: =$E$44*15 -> 4.693309623 | I48: 4.693309623 | J48: 4.693309623 | K48: 4.693309623 | L48: 4.693309623 | M48: 4.693309623 | N48: 4.693309623 | O48: 4.693309623 | Q48: $E$44*15
B50: Stundenwinkel zum Frühlingspunkt | E50: =$E48+$J2 -> 14.42330962 | G50: =$E48+$J2 -> 14.42330962 | I50: =$E48+$J2 -> 14.42330962 | J50: 14.42330962 | K50: 14.42330962 | L50: 14.42330962 | M50: 14.42330962 | N50: 14.42330962 | O50: 14.42330962 | Q50: $E48+$J2
E52: =$E$50/15 -> 0.9615539749 | G52: =$E$50/15 -> 0.9615539749 | I52: =$E$50/15 -> 0.9615539749 | J52: 0.9615539749 | K52: 0.9615539749 | L52: 0.9615539749 | M52: 0.9615539749 | N52: 0.9615539749 | O52: 0.9615539749 | Q52: $E$50/15
B54: Lokale Sternzeit | E54: =$E$52/24 -> 00:57:41.594 | G54: =$E$52/24 -> 00:57:41.594 | I54: =$E$52/24 -> 00:57:41.594 | J54: 00:57:41.594 | K54: 00:57:41.594 | L54: 00:57:41.594 | M54: 00:57:41.594 | N54: 00:57:41.594 | O54: 00:57:41.594 | Q54: $E$52/24
B56: Stundenwinkel Himmelskörper (tau) | E56: =E50-E30 -> -289.1432805 | G56: =G50-G30 -> -116.7229585 | I56: =I50-I30 -> -283.6447411 | J56: -239.7777681 | K56: 1.849990212 | L56: -240.1486916 | M56: -270.2585568 | N56: -12.21159219 | O56: -331.5530791 | Q56: E50-E30
A58: Azimut und Höhe
B60: AZIMUT | D60: Nenner | E60: =COS(RADIANS(E56))*SIN(RADIANS($J$4))-TAN(RADIANS(E32))*COS(RADIANS($J$4)) -> 0.480278889 | G60: =COS(RADIANS(G56))*SIN(RADIANS($J$4))-TAN(RADIANS(G32))*COS(RADIANS($J$4)) -> -0.5607139171 | I60: =COS(RADIANS(I56))*SIN(RADIANS($J$4))-TAN(RADIANS(I32))*COS(RADIANS($J$4)) -> 0.4435294336 | J60: -0.1819100505 | K60: 0.7326806492 | L60: -0.1469619338 | M60: 0.2537701216 | N60: 0.6616758304 | O60: 0.7718644045 | Q60: COS(BOGENMASS(E53))*SIN(BOGENMASS($J$4))-TAN(BOGENMASS(E32))*COS(BOGENMASS($J$4))
B62: QUADRANT! | D62: ZW | E62: =ATAN(SIN(RADIANS(E56))/(COS(RADIANS(E56))*SIN(RADIANS($J$4))-TAN(RADIANS(E32))*COS(RADIANS($J$4))))*180/PI() -> 63.05156985 | G62: =ATAN(SIN(RADIANS(G56))/(COS(RADIANS(G56))*SIN(RADIANS($J$4))-TAN(RADIANS(G32))*COS(RADIANS($J$4))))*180/PI() -> 57.88085025 | I62: =ATAN(SIN(RADIANS(I56))/(COS(RADIANS(I56))*SIN(RADIANS($J$4))-TAN(RADIANS(I32))*COS(RADIANS($J$4))))*180/PI() -> 65.46753787 | J62: -78.11143307 | K62: 2.522890699 | L62: -80.38293506 | M62: 75.76049302 | N62: -17.72788259 | O62: 31.68018106 | Q62: ARCTAN(SIN(BOGENMASS(E53))/(COS(BOGENMASS(E53))*SIN(BOGENMASS($J$4))-TAN(BOGENMASS(E32))*COS(BOGENMASS($J$4))))*180/PI()
D63: ZW | E63: =IF(E60<0,E62+360,E62+180) -> 243.0515699 | G63: =IF(G60<0,G62+360,G62+180) -> 417.8808502 | I63: =IF(I60<0,I62+360,I62+180) -> 245.4675379 | J63: =IF(J60<0,J62+360,J62+180) -> 281.8885669 | K63: =IF(K60<0,K62+360,K62+180) -> 182.5228907 | L63: =IF(L60<0,L62+360,L62+180) -> 279.6170649 | M63: =IF(M60<0,M62+360,M62+180) -> 255.760493 | N63: =IF(N60<0,N62+360,N62+180) -> 162.2721174 | O63: =IF(O60<0,O62+360,O62+180) -> 211.6801811 | Q63: WENN(E57<0;E59+360;E59+180)
D64: ZW | E64: =360+E63 -> 603.0515699 | G64: =360+G63 -> 777.8808502 | I64: =360+I63 -> 605.4675379 | J64: =360+J63 -> 641.8885669 | K64: =360+K63 -> 542.5228907 | L64: =360+L63 -> 639.6170649 | M64: =360+M63 -> 615.760493 | N64: =360+N63 -> 522.2721174 | O64: =360+O63 -> 571.6801811 | Q64: 360+E60
E66: Sonne | G66: Mond | I66: Merkur | J66: Venus | K66: Mars | L66: Jupiter | M66: Saturn | N66: Uranus | O66: Neptun
D68: AZIMUT | E68: =E64-INT(E64/360)*360 -> 243.0515699 | G68: =G64-INT(G64/360)*360 -> 57.88085025 | I68: =I64-INT(I64/360)*360 -> 245.4675379 | J68: =J64-INT(J64/360)*360 -> 281.8885669 | K68: =K64-INT(K64/360)*360 -> 182.5228907 | L68: =L64-INT(L64/360)*360 -> 279.6170649 | M68: =M64-INT(M64/360)*360 -> 255.760493 | N68: =N64-INT(N64/360)*360 -> 162.2721174 | O68: =O64-INT(O64/360)*360 -> 211.6801811 | Q68: E61-GANZZAHL(E61/360)*360
D70: HÖHE | E70: =ASIN(COS(RADIANS(E32))*COS(RADIANS(E56))*COS(RADIANS($J$4))+SIN(RADIANS(E32))*SIN(RADIANS($J$4)))*180/PI() -> -4.638437808 | G70: =ASIN(COS(RADIANS(G32))*COS(RADIANS(G56))*COS(RADIANS($J$4))+SIN(RADIANS(G32))*SIN(RADIANS($J$4)))*180/PI() -> -0.4938240725 | I70: =ASIN(COS(RADIANS(I32))*COS(RADIANS(I56))*COS(RADIANS($J$4))+SIN(RADIANS(I32))*SIN(RADIANS($J$4)))*180/PI() -> -10.03688992 | J70: -33.68457954 | K70: 43.11431352 | L70: -35.38125797 | M70: -17.32843937 | N70: 46.90876439 | O70: 25.81946975 | Q70: ARCSIN(COS(BOGENMASS(E32))*COS(BOGENMASS(E53))*COS(BOGENMASS($J$4))+SIN(BOGENMASS(E32))*SIN(BOGENMASS($J$4)))*180/PI()
C73: Diagramm
C75: Azimut | D75: Höhe
B76: Sonne | C76: =E68 -> 243.0515699 | D76: =E70 -> -4.638437808
B77: Mond | C77: =G68 -> 57.88085025 | D77: =G70 -> -0.4938240725
B78: Merkur | C78: =I68 -> 245.4675379 | D78: =I70 -> -10.03688992
B79: Venus | C79: =J68 -> 281.8885669 | D79: =J70 -> -33.68457954
B80: Mars | C80: =K68 -> 182.5228907 | D80: =K70 -> 43.11431352
B81: Jupiter | C81: =L68 -> 279.6170649 | D81: =L70 -> -35.38125797
B82: Saturn | C82: =M68 -> 255.760493 | D82: =M70 -> -17.32843937
B83: Uranus | C83: =N68 -> 162.2721174 | D83: =N70 -> 46.90876439
B84: Neptun | C84: =O68 -> 211.6801811 | D84: =O70 -> 25.81946975
B89: Aufgang, Durchgang und Untergang
E91: Sonne | G91: Mond | I91: Merkur | J91: Venus | K91: Mars | L91: Jupiter | M91: Saturn | N91: Uranus | O91: Neptun
C93: Rektaszension Sonne | E93: =$E30/15 -> 20.23777267 | G93: =$E30/15 -> 20.23777267 | I93: =$E30/15 -> 20.23777267 | J93: 20.23777267 | K93: 20.23777267 | L93: 20.23777267 | M93: 20.23777267 | N93: 20.23777267 | O93: 20.23777267 | Q93: $E30/15 | S93: Mond
E94: =$E30/15 -> 20.23777267 | G94: =G30/15 -> 8.743084539 | I94: =I30/15 -> 19.87120338 | J94: 16.94673852 | K94: 0.8382212941 | L94: 16.97146675 | M94: 18.9787911 | N94: 1.775660121 | O94: 23.06509258 | Q94: G30/15 | S94: Mond
C95: Differenz | E95: =E94-E93 -> 0 | G95: =G94-G93 -> -11.49468814 | I95: =I94-I93 -> -0.3665692964 | J95: -3.291034157 | K95: -19.39955138 | L95: -3.26630593 | M95: -1.258981579 | N95: =N94-N93 -> -18.46211255 | O95: 2.827319904 | Q95: G91-G90 | S95: Mond
C97: Durchgang Sonne | E97: =Tabelle3!$D116 -> 12.53933698 | G97: =Tabelle3!$D116 -> 12.53933698 | I97: =Tabelle3!$D116 -> 12.53933698 | J97: =Tabelle3!$D116 -> 12.53933698 | K97: =Tabelle3!$D116 -> 12.53933698 | L97: =Tabelle3!$D116 -> 12.53933698 | M97: =Tabelle3!$D116 -> 12.53933698 | N97: =Tabelle3!$D116 -> 12.53933698 | O97: =Tabelle3!$D116 -> 12.53933698 | Q97: Tabelle3!$D116
C99: Durchgang | E99: =E97+E95 -> 12.53933698 | G99: =G97+G95 -> 1.044648847 | I99: =I97+I95 -> 12.17276769 | J99: 9.248302825 | K99: =K97+K95 -> -6.860214398 | L99: 9.273031053 | M99: 11.2803554 | N99: =N97+N95 -> -5.922775571 | O99: 15.36665689 | Q99: G94+G92 | S99: Mond
E100: =IF(E99<0,24+E99,E99) -> 12.53933698 | G100: =IF(G99<0,24+G99,G99) -> 1.044648847 | I100: 12.17276769 | J100: 9.248302825 | K100: 17.1397856 | L100: 9.273031053 | M100: 11.2803554 | N100: =IF(N99<0,24+N99,N99) -> 18.07722443 | O100: =IF(O99<0,24+O99,O99) -> 15.36665689 | Q100: WENN(G96<0;24+G96;G96) | S100: Mond | U100: Wenn Wert <0 dann 24+Wert
E101: =E100/24 -> 12:32:21.613 | G101: =G100/24 -> 01:02:40.736 | I101: 12:10:21.964 | J101: 09:14:53.890 | K101: 17:08:23.228 | L101: 09:16:22.912 | M101: 11:16:49.279 | N101: =N100/24 -> 18:04:38.008 | O101: =O100/24 -> 15:21:59.965 | Q101: G97/24 | S101: Mond
C103: Durchgang alternativ | E103: =E31*24-E54*24+$D$4+Tabelle1!$G$6 -> 36.53967703 | G103: =G31*24-G54*24+$D$4+Tabelle1!$G$6 -> 25.04498889 | I103: =I31*24-I54*24+$D$4+Tabelle1!$G$6 -> 36.17310773 | J103: =J31*24-J54*24+$D$4+Tabelle1!$G$6 -> 33.24864287 | K103: =K31*24-K54*24+$D$4+Tabelle1!$G$6 -> 17.14012564 | L103: =L31*24-L54*24+$D$4+Tabelle1!$G$6 -> 33.2733711 | M103: =M31*24-M54*24+$D$4+Tabelle1!$G$6 -> 35.28069545 | N103: =N31*24-N54*24+$D$4+Tabelle1!$G$6 -> 18.07756447 | O103: =O31*24-O54*24+$D$4+Tabelle1!$G$6 -> 39.36699693
C104: Nach Sternzeit und RA | E104: =IF(E103<0,24+E103,E103) -> 36.53967703 | G104: 25.04498889 | I104: 36.17310773 | J104: 33.24864287 | K104: 17.14012564 | L104: 33.2733711 | M104: 35.28069545 | N104: =IF(N103<0,24+N103,N103) -> 18.07756447 | O104: =IF(O103<0,24+O103,O103) -> 39.36699693
C105: berechnet | E105: =E104/24 -> 1.522486543 | G105: 1.043541204 | I105: 1.507212822 | J105: 1.385360119 | K105: 17:08:24.452 | L105: 1.386390462 | M105: 1.470028977 | N105: =N104/24 -> 18:04:39.232 | O105: =O104/24 -> 1.640291539
G107: Eigenbewegung Mond | J107: TRY
G108: Korrektur MD | J108: MD alt | K108: =G105 -> 1.043541204
G109: Bewegung / h | H109: =Tabelle4!D51 -> 0.6141708282 | J109: MD neu | K109: =K108-(1/24-Tabelle4!J48/24) -> 1.026525539
H110: =(G104-D4)*H109/15 -> 0.3595573266
H111: =G104+H110 -> 25.40454622
H112: =IF(H111>24,H111-24,H111) -> 1.404546216 | I112: UTC
G113: Mond MD geo | H113: =H112/24 -> 01:24:16.366
C115: Höhe bei Durchgang (°) | E115: =90-Tabelle1!$M$6+E32 -> 17.75632672 | G115: =90-Tabelle1!$M$6+G32 -> 56.14456819 | I115: =90-Tabelle1!$M$6+I32 -> 14.81361106 | J115: =90-Tabelle1!$M$6+J32 -> 18.06795395 | K115: =90-Tabelle1!$M$6+K32 -> 43.13917522 | L115: =90-Tabelle1!$M$6+L32 -> 15.56607861 | M115: =90-Tabelle1!$M$6+M32 -> 15.33256945 | N115: =90-Tabelle1!$M$6+N32 -> 48.0604221 | O115: =90-Tabelle1!$M$6+O32 -> 30.57619898 | Q115: 90-Tabelle1!$J$6+E32
C118: Halber Tagbogen | E118: =12*ACOS((SIN(RADIANS(-0.833))-(SIN(RADIANS($J4))*SIN(RADIANS(E32))/(COS(RADIANS($J4))*COS(RADIANS(E32))))))/PI() -> 4.198877264 | G118: =12*ACOS((SIN(RADIANS(-0.833))-(SIN(RADIANS($J4))*SIN(RADIANS(G32))/(COS(RADIANS($J4))*COS(RADIANS(G32))))))/PI() -> 7.780022016 | I118: =12*ACOS((SIN(RADIANS(-0.833))-(SIN(RADIANS($J4))*SIN(RADIANS(I32))/(COS(RADIANS($J4))*COS(RADIANS(I32))))))/PI() -> 3.861398106 | J118: 4.232942834 | K118: 6.536214541 | L118: 3.950666805 | M118: 3.923203139 | N118: 6.97952113 | O118: 5.441120338 | Q118: Mond:12*ARCCOS((SIN(BOGENMASS(-0,833))-(SIN(BOGENMASS($J4))*SIN(BOGENMASS(G32))/(COS(BOGENMASS($J4))*COS(BOGENMASS(G32))))))/PI()
C121: Aufgang | E121: =IF(E99-E118<0,E99-E118+24,E99-E118) -> 8.340459719 | G121: =IF(G99-G118<0,G99-G118+24,G99-G118) -> 17.26462683 | I121: =IF(I99-I118<0,I99-I118+24,I99-I118) -> 8.31136958 | J121: 5.015359992 | K121: 10.60357106 | L121: 5.322364248 | M121: 7.357152264 | N121: 11.0977033 | O121: 9.925536549 | Q121: WENN(G96-G100<0;G96-G100+24;G96-G100) | U121: Durchgang - halber Tagbogen
E122: =E121/24 -> 08:20:25.655 | G122: =G121/24 -> 17:15:52.657 | I122: =I121/24 -> 08:18:40.930 | J122: 05:00:55.296 | K122: 10:36:12.856 | L122: 05:19:20.511 | M122: 07:21:25.748 | N122: 11:05:51.732 | O122: 09:55:31.932 | Q122: G102/24 | U122: Durchgang + halber Tagbogen
H123: Mond MA
H124: =H112-G118-G118/24 -> -6.699643385
H125: =IF(H124<0,24+H124,H124) -> 17.30035662
H126: =H125/24 -> 17:18:01.284
C127: Azimut (Aufgang) | E127: =180-ACOS(-SIN(RADIANS(E32))/COS(RADIANS(Tabelle1!$M$6)))*180/PI() -> 123.823544 | G127: =180-ACOS(-SIN(RADIANS(G32))/COS(RADIANS(Tabelle1!$M$6)))*180/PI() -> 58.63565719 | I127: =180-ACOS(-SIN(RADIANS(I32))/COS(RADIANS(Tabelle1!$M$6)))*180/PI() -> 129.4200583 | J127: =180-ACOS(-SIN(RADIANS(J32))/COS(RADIANS(Tabelle1!$M$6)))*180/PI() -> 123.2469601 | K127: =180-ACOS(-SIN(RADIANS(K32))/COS(RADIANS(Tabelle1!$M$6)))*180/PI() -> 80.93462238 | L127: =180-ACOS(-SIN(RADIANS(L32))/COS(RADIANS(Tabelle1!$M$6)))*180/PI() -> 127.9602136 | M127: =180-ACOS(-SIN(RADIANS(M32))/COS(RADIANS(Tabelle1!$M$6)))*180/PI() -> 128.4109122 | N127: =180-ACOS(-SIN(RADIANS(N32))/COS(RADIANS(Tabelle1!$M$6)))*180/PI() -> 72.73057818 | O127: =180-ACOS(-SIN(RADIANS(O32))/COS(RADIANS(Tabelle1!$M$6)))*180/PI() -> 101.5890535
C129: Untergang | E129: =E99+E118 -> 16.73821425 | G129: =G99+G118 -> 8.824670863 | I129: =I99+I118 -> 16.03416579 | J129: 13.48124566 | K129: -0.3239998572 | L129: 13.22369786 | M129: 15.20355854 | N129: 1.056745559 | O129: 20.80777722 | Q129: G96+G100
E130: =IF(E129<0,24+E129,E129) -> 16.73821425 | G130: =IF(G129<0,24+G129,G129) -> 8.824670863 | I130: =IF(I129<0,24+I129,I129) -> 16.03416579 | J130: 13.48124566 | K130: 23.67600014 | L130: 13.22369786 | M130: 15.20355854 | N130: 1.056745559 | O130: 20.80777722 | Q130: WENN(G107<0;24+G107;G107)
E131: =E130/24 -> 16:44:17.571 | G131: =G130/24 -> 08:49:28.815 | I131: =I130/24 -> 16:02:02.997 | J131: 13:28:52.484 | K131: 23:40:33.601 | L131: 13:13:25.312 | M131: 15:12:12.811 | N131: 01:03:24.284 | O131: 20:48:27.998 | Q131: G108/24
H132: Mond MU
H133: =H112+G118+G118/24 -> 9.508735816
H134: =IF(H133<0,24+H133,H133) -> 9.508735816
H135: =H134/24 -> 09:30:31.449
C137: Azimut (Untergang) | E137: =180+ACOS(-SIN(RADIANS(E32))/COS(RADIANS(Tabelle1!$M$6)))*180/PI() -> 236.176456 | G137: =180+ACOS(-SIN(RADIANS(G32))/COS(RADIANS(Tabelle1!$M$6)))*180/PI() -> 301.3643428 | I137: =180+ACOS(-SIN(RADIANS(I32))/COS(RADIANS(Tabelle1!$M$6)))*180/PI() -> 230.5799417 | J137: =180+ACOS(-SIN(RADIANS(J32))/COS(RADIANS(Tabelle1!$M$6)))*180/PI() -> 236.7530399 | K137: =180+ACOS(-SIN(RADIANS(K32))/COS(RADIANS(Tabelle1!$M$6)))*180/PI() -> 279.0653776 | L137: =180+ACOS(-SIN(RADIANS(L32))/COS(RADIANS(Tabelle1!$M$6)))*180/PI() -> 232.0397864 | M137: =180+ACOS(-SIN(RADIANS(M32))/COS(RADIANS(Tabelle1!$M$6)))*180/PI() -> 231.5890878 | N137: =180+ACOS(-SIN(RADIANS(N32))/COS(RADIANS(Tabelle1!$M$6)))*180/PI() -> 287.2694218 | O137: =180+ACOS(-SIN(RADIANS(O32))/COS(RADIANS(Tabelle1!$M$6)))*180/PI() -> 258.4109465
G141: Mond:
G142: EIGENBEWEGUNG nach OSTEN nur näherungsweise berücksichtigt!
G143: Aufgangs- Durchgangs- und Untergangszeiten abhängig von eingestellter Uhrzeit!

Sheet Tabelle7 (hidden)

Sheet Tabelle8
A2: Datum | B2: =Tabelle1!B10 -> 2019-01-21T16:15:48.450 | D2: Länge | E2: =Tabelle1!$K$6 -> 9.73
B5: Datum, Uhrzeit | D5: Uhrzeit | E5: JD | F5: Tage J2000 | G5: T | I5: JD0 | J5: T0 | K5: Sternzeit G | L5: norm. 24h | M5: Sternzeit Greenwich | N5: q Grennwich | P5: HA Frühlingspunkt | R5: Lokale Sternzeit
B6: =B2 -> 2019-01-21T16:15:48.450 | C6: =B6 -> 43486.67764 | D6: =B6-INT(B6) -> 16:15:48.450 | E6: =2451545+B6-DATE(2000,1,1) -> 2458505.678 | F6: =E6-2451545.5 -> 6960.177644 | G6: =F6/36525 -> 0.1905592784 | I6: =INT(2451545+B6-DATE(2000,1,1)) -> 2458505 | J6: =(I6-2451545.5)/36525 -> 0.1905407255 | K6: =6.697376+2400.05134*J6+1.002738*D6*24 -> 480.3128873 | L6: =K6-INT(K6/24)*24 -> 0.3128873082 | M6: =L6/24 -> 00:18:46.394 | N6: =L6*15 -> 4.693309623 | P6: =N6+Tabelle1!$K$6 -> 14.42330962 | Q6: =P6/15 -> 0.9615539749 | R6: =Q6/24 -> 00:57:41.594
D9: Sternzeit zur Tagesmitte | I9: =I6+0.5 -> 2458505.5 | J9: =(I9-2451545.5)/36525 -> 0.1905544148 | K9: =6.697376+2400.05134*J9+1.002738*0.5*24 -> 476.0706105 | L9: =K9-INT(K9/24)*24 -> 20.07061055 | M9: =L9/24 -> 20:04:14.198 | N9: =L9*15 -> 301.0591582 | P9: =N9+Tabelle1!$K$6 -> 310.7891582 | Q9: =P9/15 -> 20.71927721 | R9: =Q9/24 -> 20:43:09.398

Sheet Tabelle9
C1: =O7+1 -> 15
K7: =Tabelle1!$S$17 -> -99.68068753 | L7: % | M7: =IF(K7<0,14.03+(14.03+2*K7/14.25),2*K7/14.25) -> 14.06972807 | O7: =ROUND(M7,0) -> 14
K8: Übernahme von Tabelle1 | M8: Rohwert | O8: Runden (Mondalter)
F9: Prinzip:
F10: Verknüpfung der Bilder über Funktion "Indirekt"
F11: "Formeln". "Namensmanager"
F12: INDIREKT("Tabelle1!A" & Tabelle1!$C$1)

Sheet Tabelle10 (hidden)
